{"text_format":"3","workbook":"xlsx","n_sheets":12,"sheets":["ENE","FEB","MAR","ABR","MAY","JUN","JUL","AGO","SEP","OCT","NOV","DIC"],"not_rendered":{"defined_names":40},"read":"whole","date_system":"1900"}

{"sheet":"ENE","index":0,"n_rows":20,"n_cols":9,"rows_kept":20,"merged":[[16,2,17,2],[16,3,17,3],[17,4,19,8]]}
[null,"ENE","DOM",{"$f":"UPPER(TEXT(D3,\"ddd\"))","v":"LUN"},{"$f":"UPPER(TEXT(E3,\"ddd\"))","v":"MAR"},{"$f":"UPPER(TEXT(F3,\"ddd\"))","v":"MIÉ"},{"$f":"UPPER(TEXT(G3,\"ddd\"))","v":"JUE"},{"$f":"UPPER(TEXT(H3,\"ddd\"))","v":"VIE"},{"$f":"UPPER(TEXT(I3,\"ddd\"))","v":"SÁB"}]
[null,{"$f":"YEAR(TODAY())","v":2018}]
[null,null,{"$f":"DíasYSemanas+DATE(AñoNatural,1,1)-WEEKDAY(DATE(AñoNatural,1,1),(InicioDeSemana=\"LUN\")+1)+1","v":"2017-12-31"},"2018-01-01","2018-01-02","2018-01-03","2018-01-04","2018-01-05","2018-01-06"]
[null,null,{"$f":"IF(DAY(CalendarDay)=1,CONCATENATE(\"Semana \",WEEKNUM(CalendarDay),\"/Día \",CalendarDay-DATE(YEAR(CalendarDay),1,0)),CONCATENATE(\"Día \",CalendarDay-DATE(YEAR(CalendarDay),1,0)))","v":"Día 365"},{"$f":"IF(DAY(CalendarDay)=1,CONCATENATE(\"Semana \",WEEKNUM(CalendarDay),\"/Día \",CalendarDay-DATE(YEAR(CalendarDay),1,0)),CONCATENATE(\"Día \",CalendarDay-DATE(YEAR(CalendarDay),1,0)))","v":"Semana 1/Día 1"},{"$f":"IF(DAY(CalendarDay)=1,CONCATENATE(\"Semana \",WEEKNUM(CalendarDay),\"/Día \",CalendarDay-DATE(YEAR(CalendarDay),1,0)),CONCATENATE(\"Día \",CalendarDay-DATE(YEAR(CalendarDay),1,0)))","v":"Día 2"},{"$f":"IF(DAY(CalendarDay)=1,CONCATENATE(\"Semana \",WEEKNUM(CalendarDay),\"/Día \",CalendarDay-DATE(YEAR(CalendarDay),1,0)),CONCATENATE(\"Día \",CalendarDay-DATE(YEAR(CalendarDay),1,0)))","v":"Día 3"},{"$f":"IF(DAY(CalendarDay)=1,CONCATENATE(\"Semana \",WEEKNUM(CalendarDay),\"/Día \",CalendarDay-DATE(YEAR(CalendarDay),1,0)),CONCATENATE(\"Día \",CalendarDay-DATE(YEAR(CalendarDay),1,0)))","v":"Día 4"},{"$f":"IF(DAY(CalendarDay)=1,CONCATENATE(\"Semana \",WEEKNUM(CalendarDay),\"/Día \",CalendarDay-DATE(YEAR(CalendarDay),1,0)),CONCATENATE(\"Día \",CalendarDay-DATE(YEAR(CalendarDay),1,0)))","v":"Día 5"},{"$f":"IF(DAY(CalendarDay)=1,CONCATENATE(\"Semana \",WEEKNUM(CalendarDay),\"/Día \",CalendarDay-DATE(YEAR(CalendarDay),1,0)),CONCATENATE(\"Día \",CalendarDay-DATE(YEAR(CalendarDay),1,0)))","v":"Día 6"}]
[]
[null,null,{"$f":"DíasYSemanas+DATE(AñoNatural,1,1)-WEEKDAY(DATE(AñoNatural,1,1),(InicioDeSemana=\"LUN\")+1)+8","v":"2018-01-07"},"2018-01-08","2018-01-09","2018-01-10","2018-01-11","2018-01-12","2018-01-13"]
[null,null,{"$f":"IF(WEEKDAY(CalendarDay)=ValorDeInicioDeSemana,CONCATENATE(\"Semana \",WEEKNUM(CalendarDay),\"/Día \",CalendarDay-DATE(YEAR(CalendarDay),1,0)),CONCATENATE(\"Día \",CalendarDay-DATE(YEAR(CalendarDay),1,0)))","v":"Semana 2/Día 7"},{"$f":"IF(WEEKDAY(CalendarDay)=ValorDeInicioDeSemana,CONCATENATE(\"Semana \",WEEKNUM(CalendarDay),\"/Día \",CalendarDay-DATE(YEAR(CalendarDay),1,0)),CONCATENATE(\"Día \",CalendarDay-DATE(YEAR(CalendarDay),1,0)))","v":"Día 8"},{"$f":"IF(WEEKDAY(CalendarDay)=ValorDeInicioDeSemana,CONCATENATE(\"Semana \",WEEKNUM(CalendarDay),\"/Día \",CalendarDay-DATE(YEAR(CalendarDay),1,0)),CONCATENATE(\"Día \",CalendarDay-DATE(YEAR(CalendarDay),1,0)))","v":"Día 9"},{"$f":"IF(WEEKDAY(CalendarDay)=ValorDeInicioDeSemana,CONCATENATE(\"Semana \",WEEKNUM(CalendarDay),\"/Día \",CalendarDay-DATE(YEAR(CalendarDay),1,0)),CONCATENATE(\"Día \",CalendarDay-DATE(YEAR(CalendarDay),1,0)))","v":"Día 10"},{"$f":"IF(WEEKDAY(CalendarDay)=ValorDeInicioDeSemana,CONCATENATE(\"Semana \",WEEKNUM(CalendarDay),\"/Día \",CalendarDay-DATE(YEAR(CalendarDay),1,0)),CONCATENATE(\"Día \",CalendarDay-DATE(YEAR(CalendarDay),1,0)))","v":"Día 11"},{"$f":"IF(WEEKDAY(CalendarDay)=ValorDeInicioDeSemana,CONCATENATE(\"Semana \",WEEKNUM(CalendarDay),\"/Día \",CalendarDay-DATE(YEAR(CalendarDay),1,0)),CONCATENATE(\"Día \",CalendarDay-DATE(YEAR(CalendarDay),1,0)))","v":"Día 12"},{"$f":"IF(WEEKDAY(CalendarDay)=ValorDeInicioDeSemana,CONCATENATE(\"Semana \",WEEKNUM(CalendarDay),\"/Día \",CalendarDay-DATE(YEAR(CalendarDay),1,0)),CONCATENATE(\"Día \",CalendarDay-DATE(YEAR(CalendarDay),1,0)))","v":"Día 13"}]
[]
[null,null,{"$f":"DíasYSemanas+DATE(AñoNatural,1,1)-WEEKDAY(DATE(AñoNatural,1,1),(InicioDeSemana=\"LUN\")+1)+15","v":"2018-01-14"},"2018-01-15","2018-01-16","2018-01-17","2018-01-18","2018-01-19","2018-01-20"]
[null,null,{"$f":"IF(WEEKDAY(CalendarDay)=ValorDeInicioDeSemana,CONCATENATE(\"Semana \",WEEKNUM(CalendarDay),\"/Día \",CalendarDay-DATE(YEAR(CalendarDay),1,0)),CONCATENATE(\"Día \",CalendarDay-DATE(YEAR(CalendarDay),1,0)))","v":"Semana 3/Día 14"},{"$f":"IF(WEEKDAY(CalendarDay)=ValorDeInicioDeSemana,CONCATENATE(\"Semana \",WEEKNUM(CalendarDay),\"/Día \",CalendarDay-DATE(YEAR(CalendarDay),1,0)),CONCATENATE(\"Día \",CalendarDay-DATE(YEAR(CalendarDay),1,0)))","v":"Día 15"},{"$f":"IF(WEEKDAY(CalendarDay)=ValorDeInicioDeSemana,CONCATENATE(\"Semana \",WEEKNUM(CalendarDay),\"/Día \",CalendarDay-DATE(YEAR(CalendarDay),1,0)),CONCATENATE(\"Día \",CalendarDay-DATE(YEAR(CalendarDay),1,0)))","v":"Día 16"},{"$f":"IF(WEEKDAY(CalendarDay)=ValorDeInicioDeSemana,CONCATENATE(\"Semana \",WEEKNUM(CalendarDay),\"/Día \",CalendarDay-DATE(YEAR(CalendarDay),1,0)),CONCATENATE(\"Día \",CalendarDay-DATE(YEAR(CalendarDay),1,0)))","v":"Día 17"},{"$f":"IF(WEEKDAY(CalendarDay)=ValorDeInicioDeSemana,CONCATENATE(\"Semana \",WEEKNUM(CalendarDay),\"/Día \",CalendarDay-DATE(YEAR(CalendarDay),1,0)),CONCATENATE(\"Día \",CalendarDay-DATE(YEAR(CalendarDay),1,0)))","v":"Día 18"},{"$f":"IF(WEEKDAY(CalendarDay)=ValorDeInicioDeSemana,CONCATENATE(\"Semana \",WEEKNUM(CalendarDay),\"/Día \",CalendarDay-DATE(YEAR(CalendarDay),1,0)),CONCATENATE(\"Día \",CalendarDay-DATE(YEAR(CalendarDay),1,0)))","v":"Día 19"},{"$f":"IF(WEEKDAY(CalendarDay)=ValorDeInicioDeSemana,CONCATENATE(\"Semana \",WEEKNUM(CalendarDay),\"/Día \",CalendarDay-DATE(YEAR(CalendarDay),1,0)),CONCATENATE(\"Día \",CalendarDay-DATE(YEAR(CalendarDay),1,0)))","v":"Día 20"}]
[]
[null,null,{"$f":"DíasYSemanas+DATE(AñoNatural,1,1)-WEEKDAY(DATE(AñoNatural,1,1),(InicioDeSemana=\"LUN\")+1)+22","v":"2018-01-21"},"2018-01-22","2018-01-23","2018-01-24","2018-01-25","2018-01-26","2018-01-27"]
[null,null,{"$f":"IF(WEEKDAY(CalendarDay)=ValorDeInicioDeSemana,CONCATENATE(\"Semana \",WEEKNUM(CalendarDay),\"/Día \",CalendarDay-DATE(YEAR(CalendarDay),1,0)),CONCATENATE(\"Día \",CalendarDay-DATE(YEAR(CalendarDay),1,0)))","v":"Semana 4/Día 21"},{"$f":"IF(WEEKDAY(CalendarDay)=ValorDeInicioDeSemana,CONCATENATE(\"Semana \",WEEKNUM(CalendarDay),\"/Día \",CalendarDay-DATE(YEAR(CalendarDay),1,0)),CONCATENATE(\"Día \",CalendarDay-DATE(YEAR(CalendarDay),1,0)))","v":"Día 22"},{"$f":"IF(WEEKDAY(CalendarDay)=ValorDeInicioDeSemana,CONCATENATE(\"Semana \",WEEKNUM(CalendarDay),\"/Día \",CalendarDay-DATE(YEAR(CalendarDay),1,0)),CONCATENATE(\"Día \",CalendarDay-DATE(YEAR(CalendarDay),1,0)))","v":"Día 23"},{"$f":"IF(WEEKDAY(CalendarDay)=ValorDeInicioDeSemana,CONCATENATE(\"Semana \",WEEKNUM(CalendarDay),\"/Día \",CalendarDay-DATE(YEAR(CalendarDay),1,0)),CONCATENATE(\"Día \",CalendarDay-DATE(YEAR(CalendarDay),1,0)))","v":"Día 24"},{"$f":"IF(WEEKDAY(CalendarDay)=ValorDeInicioDeSemana,CONCATENATE(\"Semana \",WEEKNUM(CalendarDay),\"/Día \",CalendarDay-DATE(YEAR(CalendarDay),1,0)),CONCATENATE(\"Día \",CalendarDay-DATE(YEAR(CalendarDay),1,0)))","v":"Día 25"},{"$f":"IF(WEEKDAY(CalendarDay)=ValorDeInicioDeSemana,CONCATENATE(\"Semana \",WEEKNUM(CalendarDay),\"/Día \",CalendarDay-DATE(YEAR(CalendarDay),1,0)),CONCATENATE(\"Día \",CalendarDay-DATE(YEAR(CalendarDay),1,0)))","v":"Día 26"},{"$f":"IF(WEEKDAY(CalendarDay)=ValorDeInicioDeSemana,CONCATENATE(\"Semana \",WEEKNUM(CalendarDay),\"/Día \",CalendarDay-DATE(YEAR(CalendarDay),1,0)),CONCATENATE(\"Día \",CalendarDay-DATE(YEAR(CalendarDay),1,0)))","v":"Día 27"}]
[]
[null,null,{"$f":"DíasYSemanas+DATE(AñoNatural,1,1)-WEEKDAY(DATE(AñoNatural,1,1),(InicioDeSemana=\"LUN\")+1)+29","v":"2018-01-28"},"2018-01-29","2018-01-30","2018-01-31","2018-02-01","2018-02-02","2018-02-03"]
[null,null,{"$f":"IF(WEEKDAY(CalendarDay)=ValorDeInicioDeSemana,CONCATENATE(\"Semana \",WEEKNUM(CalendarDay),\"/Día \",CalendarDay-DATE(YEAR(CalendarDay),1,0)),CONCATENATE(\"Día \",CalendarDay-DATE(YEAR(CalendarDay),1,0)))","v":"Semana 5/Día 28"},{"$f":"IF(WEEKDAY(CalendarDay)=ValorDeInicioDeSemana,CONCATENATE(\"Semana \",WEEKNUM(CalendarDay),\"/Día \",CalendarDay-DATE(YEAR(CalendarDay),1,0)),CONCATENATE(\"Día \",CalendarDay-DATE(YEAR(CalendarDay),1,0)))","v":"Día 29"},{"$f":"IF(WEEKDAY(CalendarDay)=ValorDeInicioDeSemana,CONCATENATE(\"Semana \",WEEKNUM(CalendarDay),\"/Día \",CalendarDay-DATE(YEAR(CalendarDay),1,0)),CONCATENATE(\"Día \",CalendarDay-DATE(YEAR(CalendarDay),1,0)))","v":"Día 30"},{"$f":"IF(WEEKDAY(CalendarDay)=ValorDeInicioDeSemana,CONCATENATE(\"Semana \",WEEKNUM(CalendarDay),\"/Día \",CalendarDay-DATE(YEAR(CalendarDay),1,0)),CONCATENATE(\"Día \",CalendarDay-DATE(YEAR(CalendarDay),1,0)))","v":"Día 31"},{"$f":"IF(WEEKDAY(CalendarDay)=ValorDeInicioDeSemana,CONCATENATE(\"Semana \",WEEKNUM(CalendarDay),\"/Día \",CalendarDay-DATE(YEAR(CalendarDay),1,0)),CONCATENATE(\"Día \",CalendarDay-DATE(YEAR(CalendarDay),1,0)))","v":"Día 32"},{"$f":"IF(WEEKDAY(CalendarDay)=ValorDeInicioDeSemana,CONCATENATE(\"Semana \",WEEKNUM(CalendarDay),\"/Día \",CalendarDay-DATE(YEAR(CalendarDay),1,0)),CONCATENATE(\"Día \",CalendarDay-DATE(YEAR(CalendarDay),1,0)))","v":"Día 33"},{"$f":"IF(WEEKDAY(CalendarDay)=ValorDeInicioDeSemana,CONCATENATE(\"Semana \",WEEKNUM(CalendarDay),\"/Día \",CalendarDay-DATE(YEAR(CalendarDay),1,0)),CONCATENATE(\"Día \",CalendarDay-DATE(YEAR(CalendarDay),1,0)))","v":"Día 34"}]
[{"$nulls":4},"NOTAS"]
[]
[null,null,{"$f":"DíasYSemanas+DATE(AñoNatural,1,1)-WEEKDAY(DATE(AñoNatural,1,1),(InicioDeSemana=\"LUN\")+1)+36","v":"2018-02-04"},"2018-02-05"]
[null,null,{"$f":"IF(WEEKDAY(CalendarDay)=ValorDeInicioDeSemana,CONCATENATE(\"Semana \",WEEKNUM(CalendarDay),\"/Día \",CalendarDay-DATE(YEAR(CalendarDay),1,0)),CONCATENATE(\"Día \",CalendarDay-DATE(YEAR(CalendarDay),1,0)))","v":"Semana 6/Día 35"},{"$f":"IF(WEEKDAY(CalendarDay)=ValorDeInicioDeSemana,CONCATENATE(\"Semana \",WEEKNUM(CalendarDay),\"/Día \",CalendarDay-DATE(YEAR(CalendarDay),1,0)),CONCATENATE(\"Día \",CalendarDay-DATE(YEAR(CalendarDay),1,0)))","v":"Día 36"}]

{"sheet":"FEB","index":1,"n_rows":20,"n_cols":9,"rows_kept":20,"merged":[[16,2,17,2],[17,4,19,8]]}
[null,"FEB",{"$f":"UPPER(TEXT(InicioDeSemana,\"ddd\"))","v":"DOM"},{"$f":"UPPER(TEXT(D3,\"ddd\"))","v":"LUN"},{"$f":"UPPER(TEXT(E3,\"ddd\"))","v":"MAR"},{"$f":"UPPER(TEXT(F3,\"ddd\"))","v":"MIÉ"},{"$f":"UPPER(TEXT(G3,\"ddd\"))","v":"JUE"},{"$f":"UPPER(TEXT(H3,\"ddd\"))","v":"VIE"},{"$f":"UPPER(TEXT(I3,\"ddd\"))","v":"SÁB"}]
[null,{"$f":"AñoNatural","v":2018}]
[null,null,{"$f":"DíasYSemanas+DATE(AñoNatural,2,1)-WEEKDAY(DATE(AñoNatural,2,1),(InicioDeSemana=\"LUN\")+1)+1","v":"2018-01-28"},"2018-01-29","2018-01-30","2018-01-31","2018-02-01","2018-02-02","2018-02-03"]
[null,null,{"$f":"IF(DAY(CalendarDay)=1,CONCATENATE(\"Semana \",WEEKNUM(CalendarDay),\"/Día \",CalendarDay-DATE(YEAR(CalendarDay),1,0)),CONCATENATE(\"Día \",CalendarDay-DATE(YEAR(CalendarDay),1,0)))","v":"Día 28"},{"$f":"IF(DAY(CalendarDay)=1,CONCATENATE(\"Semana \",WEEKNUM(CalendarDay),\"/Día \",CalendarDay-DATE(YEAR(CalendarDay),1,0)),CONCATENATE(\"Día \",CalendarDay-DATE(YEAR(CalendarDay),1,0)))","v":"Día 29"},{"$f":"IF(DAY(CalendarDay)=1,CONCATENATE(\"Semana \",WEEKNUM(CalendarDay),\"/Día \",CalendarDay-DATE(YEAR(CalendarDay),1,0)),CONCATENATE(\"Día \",CalendarDay-DATE(YEAR(CalendarDay),1,0)))","v":"Día 30"},{"$f":"IF(DAY(CalendarDay)=1,CONCATENATE(\"Semana \",WEEKNUM(CalendarDay),\"/Día \",CalendarDay-DATE(YEAR(CalendarDay),1,0)),CONCATENATE(\"Día \",CalendarDay-DATE(YEAR(CalendarDay),1,0)))","v":"Día 31"},{"$f":"IF(DAY(CalendarDay)=1,CONCATENATE(\"Semana \",WEEKNUM(CalendarDay),\"/Día \",CalendarDay-DATE(YEAR(CalendarDay),1,0)),CONCATENATE(\"Día \",CalendarDay-DATE(YEAR(CalendarDay),1,0)))","v":"Semana 5/Día 32"},{"$f":"IF(DAY(CalendarDay)=1,CONCATENATE(\"Semana \",WEEKNUM(CalendarDay),\"/Día \",CalendarDay-DATE(YEAR(CalendarDay),1,0)),CONCATENATE(\"Día \",CalendarDay-DATE(YEAR(CalendarDay),1,0)))","v":"Día 33"},{"$f":"IF(DAY(CalendarDay)=1,CONCATENATE(\"Semana \",WEEKNUM(CalendarDay),\"/Día \",CalendarDay-DATE(YEAR(CalendarDay),1,0)),CONCATENATE(\"Día \",CalendarDay-DATE(YEAR(CalendarDay),1,0)))","v":"Día 34"}]
[]
[null,null,{"$f":"DíasYSemanas+DATE(AñoNatural,2,1)-WEEKDAY(DATE(AñoNatural,2,1),(InicioDeSemana=\"LUN\")+1)+8","v":"2018-02-04"},"2018-02-05","2018-02-06","2018-02-07","2018-02-08","2018-02-09","2018-02-10"]
[null,null,{"$f":"IF(WEEKDAY(CalendarDay)=ValorDeInicioDeSemana,CONCATENATE(\"Semana \",WEEKNUM(CalendarDay),\"/Día \",CalendarDay-DATE(YEAR(CalendarDay),1,0)),CONCATENATE(\"Día \",CalendarDay-DATE(YEAR(CalendarDay),1,0)))","v":"Semana 6/Día 35"},{"$f":"IF(WEEKDAY(CalendarDay)=ValorDeInicioDeSemana,CONCATENATE(\"Semana \",WEEKNUM(CalendarDay),\"/Día \",CalendarDay-DATE(YEAR(CalendarDay),1,0)),CONCATENATE(\"Día \",CalendarDay-DATE(YEAR(CalendarDay),1,0)))","v":"Día 36"},{"$f":"IF(WEEKDAY(CalendarDay)=ValorDeInicioDeSemana,CONCATENATE(\"Semana \",WEEKNUM(CalendarDay),\"/Día \",CalendarDay-DATE(YEAR(CalendarDay),1,0)),CONCATENATE(\"Día \",CalendarDay-DATE(YEAR(CalendarDay),1,0)))","v":"Día 37"},{"$f":"IF(WEEKDAY(CalendarDay)=ValorDeInicioDeSemana,CONCATENATE(\"Semana \",WEEKNUM(CalendarDay),\"/Día \",CalendarDay-DATE(YEAR(CalendarDay),1,0)),CONCATENATE(\"Día \",CalendarDay-DATE(YEAR(CalendarDay),1,0)))","v":"Día 38"},{"$f":"IF(WEEKDAY(CalendarDay)=ValorDeInicioDeSemana,CONCATENATE(\"Semana \",WEEKNUM(CalendarDay),\"/Día \",CalendarDay-DATE(YEAR(CalendarDay),1,0)),CONCATENATE(\"Día \",CalendarDay-DATE(YEAR(CalendarDay),1,0)))","v":"Día 39"},{"$f":"IF(WEEKDAY(CalendarDay)=ValorDeInicioDeSemana,CONCATENATE(\"Semana \",WEEKNUM(CalendarDay),\"/Día \",CalendarDay-DATE(YEAR(CalendarDay),1,0)),CONCATENATE(\"Día \",CalendarDay-DATE(YEAR(CalendarDay),1,0)))","v":"Día 40"},{"$f":"IF(WEEKDAY(CalendarDay)=ValorDeInicioDeSemana,CONCATENATE(\"Semana \",WEEKNUM(CalendarDay),\"/Día \",CalendarDay-DATE(YEAR(CalendarDay),1,0)),CONCATENATE(\"Día \",CalendarDay-DATE(YEAR(CalendarDay),1,0)))","v":"Día 41"}]
[]
[null,null,{"$f":"DíasYSemanas+DATE(AñoNatural,2,1)-WEEKDAY(DATE(AñoNatural,2,1),(InicioDeSemana=\"LUN\")+1)+15","v":"2018-02-11"},"2018-02-12","2018-02-13","2018-02-14","2018-02-15","2018-02-16","2018-02-17"]
[null,null,{"$f":"IF(WEEKDAY(CalendarDay)=ValorDeInicioDeSemana,CONCATENATE(\"Semana \",WEEKNUM(CalendarDay),\"/Día \",CalendarDay-DATE(YEAR(CalendarDay),1,0)),CONCATENATE(\"Día \",CalendarDay-DATE(YEAR(CalendarDay),1,0)))","v":"Semana 7/Día 42"},{"$f":"IF(WEEKDAY(CalendarDay)=ValorDeInicioDeSemana,CONCATENATE(\"Semana \",WEEKNUM(CalendarDay),\"/Día \",CalendarDay-DATE(YEAR(CalendarDay),1,0)),CONCATENATE(\"Día \",CalendarDay-DATE(YEAR(CalendarDay),1,0)))","v":"Día 43"},{"$f":"IF(WEEKDAY(CalendarDay)=ValorDeInicioDeSemana,CONCATENATE(\"Semana \",WEEKNUM(CalendarDay),\"/Día \",CalendarDay-DATE(YEAR(CalendarDay),1,0)),CONCATENATE(\"Día \",CalendarDay-DATE(YEAR(CalendarDay),1,0)))","v":"Día 44"},{"$f":"IF(WEEKDAY(CalendarDay)=ValorDeInicioDeSemana,CONCATENATE(\"Semana \",WEEKNUM(CalendarDay),\"/Día \",CalendarDay-DATE(YEAR(CalendarDay),1,0)),CONCATENATE(\"Día \",CalendarDay-DATE(YEAR(CalendarDay),1,0)))","v":"Día 45"},{"$f":"IF(WEEKDAY(CalendarDay)=ValorDeInicioDeSemana,CONCATENATE(\"Semana \",WEEKNUM(CalendarDay),\"/Día \",CalendarDay-DATE(YEAR(CalendarDay),1,0)),CONCATENATE(\"Día \",CalendarDay-DATE(YEAR(CalendarDay),1,0)))","v":"Día 46"},{"$f":"IF(WEEKDAY(CalendarDay)=ValorDeInicioDeSemana,CONCATENATE(\"Semana \",WEEKNUM(CalendarDay),\"/Día \",CalendarDay-DATE(YEAR(CalendarDay),1,0)),CONCATENATE(\"Día \",CalendarDay-DATE(YEAR(CalendarDay),1,0)))","v":"Día 47"},{"$f":"IF(WEEKDAY(CalendarDay)=ValorDeInicioDeSemana,CONCATENATE(\"Semana \",WEEKNUM(CalendarDay),\"/Día \",CalendarDay-DATE(YEAR(CalendarDay),1,0)),CONCATENATE(\"Día \",CalendarDay-DATE(YEAR(CalendarDay),1,0)))","v":"Día 48"}]
[]
[null,null,{"$f":"DíasYSemanas+DATE(AñoNatural,2,1)-WEEKDAY(DATE(AñoNatural,2,1),(InicioDeSemana=\"LUN\")+1)+22","v":"2018-02-18"},"2018-02-19","2018-02-20","2018-02-21","2018-02-22","2018-02-23","2018-02-24"]
[null,null,{"$f":"IF(WEEKDAY(CalendarDay)=ValorDeInicioDeSemana,CONCATENATE(\"Semana \",WEEKNUM(CalendarDay),\"/Día \",CalendarDay-DATE(YEAR(CalendarDay),1,0)),CONCATENATE(\"Día \",CalendarDay-DATE(YEAR(CalendarDay),1,0)))","v":"Semana 8/Día 49"},{"$f":"IF(WEEKDAY(CalendarDay)=ValorDeInicioDeSemana,CONCATENATE(\"Semana \",WEEKNUM(CalendarDay),\"/Día \",CalendarDay-DATE(YEAR(CalendarDay),1,0)),CONCATENATE(\"Día \",CalendarDay-DATE(YEAR(CalendarDay),1,0)))","v":"Día 50"},{"$f":"IF(WEEKDAY(CalendarDay)=ValorDeInicioDeSemana,CONCATENATE(\"Semana \",WEEKNUM(CalendarDay),\"/Día \",CalendarDay-DATE(YEAR(CalendarDay),1,0)),CONCATENATE(\"Día \",CalendarDay-DATE(YEAR(CalendarDay),1,0)))","v":"Día 51"},{"$f":"IF(WEEKDAY(CalendarDay)=ValorDeInicioDeSemana,CONCATENATE(\"Semana \",WEEKNUM(CalendarDay),\"/Día \",CalendarDay-DATE(YEAR(CalendarDay),1,0)),CONCATENATE(\"Día \",CalendarDay-DATE(YEAR(CalendarDay),1,0)))","v":"Día 52"},{"$f":"IF(WEEKDAY(CalendarDay)=ValorDeInicioDeSemana,CONCATENATE(\"Semana \",WEEKNUM(CalendarDay),\"/Día \",CalendarDay-DATE(YEAR(CalendarDay),1,0)),CONCATENATE(\"Día \",CalendarDay-DATE(YEAR(CalendarDay),1,0)))","v":"Día 53"},{"$f":"IF(WEEKDAY(CalendarDay)=ValorDeInicioDeSemana,CONCATENATE(\"Semana \",WEEKNUM(CalendarDay),\"/Día \",CalendarDay-DATE(YEAR(CalendarDay),1,0)),CONCATENATE(\"Día \",CalendarDay-DATE(YEAR(CalendarDay),1,0)))","v":"Día 54"},{"$f":"IF(WEEKDAY(CalendarDay)=ValorDeInicioDeSemana,CONCATENATE(\"Semana \",WEEKNUM(CalendarDay),\"/Día \",CalendarDay-DATE(YEAR(CalendarDay),1,0)),CONCATENATE(\"Día \",CalendarDay-DATE(YEAR(CalendarDay),1,0)))","v":"Día 55"}]
[]
[null,null,{"$f":"DíasYSemanas+DATE(AñoNatural,2,1)-WEEKDAY(DATE(AñoNatural,2,1),(InicioDeSemana=\"LUN\")+1)+29","v":"2018-02-25"},"2018-02-26","2018-02-27","2018-02-28","2018-03-01","2018-03-02","2018-03-03"]
[null,null,{"$f":"IF(WEEKDAY(CalendarDay)=ValorDeInicioDeSemana,CONCATENATE(\"Semana \",WEEKNUM(CalendarDay),\"/Día \",CalendarDay-DATE(YEAR(CalendarDay),1,0)),CONCATENATE(\"Día \",CalendarDay-DATE(YEAR(CalendarDay),1,0)))","v":"Semana 9/Día 56"},{"$f":"IF(WEEKDAY(CalendarDay)=ValorDeInicioDeSemana,CONCATENATE(\"Semana \",WEEKNUM(CalendarDay),\"/Día \",CalendarDay-DATE(YEAR(CalendarDay),1,0)),CONCATENATE(\"Día \",CalendarDay-DATE(YEAR(CalendarDay),1,0)))","v":"Día 57"},{"$f":"IF(WEEKDAY(CalendarDay)=ValorDeInicioDeSemana,CONCATENATE(\"Semana \",WEEKNUM(CalendarDay),\"/Día \",CalendarDay-DATE(YEAR(CalendarDay),1,0)),CONCATENATE(\"Día \",CalendarDay-DATE(YEAR(CalendarDay),1,0)))","v":"Día 58"},{"$f":"IF(WEEKDAY(CalendarDay)=ValorDeInicioDeSemana,CONCATENATE(\"Semana \",WEEKNUM(CalendarDay),\"/Día \",CalendarDay-DATE(YEAR(CalendarDay),1,0)),CONCATENATE(\"Día \",CalendarDay-DATE(YEAR(CalendarDay),1,0)))","v":"Día 59"},{"$f":"IF(WEEKDAY(CalendarDay)=ValorDeInicioDeSemana,CONCATENATE(\"Semana \",WEEKNUM(CalendarDay),\"/Día \",CalendarDay-DATE(YEAR(CalendarDay),1,0)),CONCATENATE(\"Día \",CalendarDay-DATE(YEAR(CalendarDay),1,0)))","v":"Día 60"},{"$f":"IF(WEEKDAY(CalendarDay)=ValorDeInicioDeSemana,CONCATENATE(\"Semana \",WEEKNUM(CalendarDay),\"/Día \",CalendarDay-DATE(YEAR(CalendarDay),1,0)),CONCATENATE(\"Día \",CalendarDay-DATE(YEAR(CalendarDay),1,0)))","v":"Día 61"},{"$f":"IF(WEEKDAY(CalendarDay)=ValorDeInicioDeSemana,CONCATENATE(\"Semana \",WEEKNUM(CalendarDay),\"/Día \",CalendarDay-DATE(YEAR(CalendarDay),1,0)),CONCATENATE(\"Día \",CalendarDay-DATE(YEAR(CalendarDay),1,0)))","v":"Día 62"}]
[{"$nulls":4},"NOTAS"]
[]
[null,null,{"$f":"DíasYSemanas+DATE(AñoNatural,2,1)-WEEKDAY(DATE(AñoNatural,2,1),(InicioDeSemana=\"LUN\")+1)+36","v":"2018-03-04"},"2018-03-05"]
[null,null,{"$f":"IF(WEEKDAY(CalendarDay)=ValorDeInicioDeSemana,CONCATENATE(\"Semana \",WEEKNUM(CalendarDay),\"/Día \",CalendarDay-DATE(YEAR(CalendarDay),1,0)),CONCATENATE(\"Día \",CalendarDay-DATE(YEAR(CalendarDay),1,0)))","v":"Semana 10/Día 63"},{"$f":"IF(WEEKDAY(CalendarDay)=ValorDeInicioDeSemana,CONCATENATE(\"Semana \",WEEKNUM(CalendarDay),\"/Día \",CalendarDay-DATE(YEAR(CalendarDay),1,0)),CONCATENATE(\"Día \",CalendarDay-DATE(YEAR(CalendarDay),1,0)))","v":"Día 64"}]

{"sheet":"MAR","index":2,"n_rows":20,"n_cols":9,"rows_kept":20,"merged":[[16,2,17,2],[17,4,19,8]]}
[null,"MAR",{"$f":"UPPER(TEXT(InicioDeSemana,\"ddd\"))","v":"DOM"},{"$f":"UPPER(TEXT(D3,\"ddd\"))","v":"LUN"},{"$f":"UPPER(TEXT(E3,\"ddd\"))","v":"MAR"},{"$f":"UPPER(TEXT(F3,\"ddd\"))","v":"MIÉ"},{"$f":"UPPER(TEXT(G3,\"ddd\"))","v":"JUE"},{"$f":"UPPER(TEXT(H3,\"ddd\"))","v":"VIE"},{"$f":"UPPER(TEXT(I3,\"ddd\"))","v":"SÁB"}]
[null,{"$f":"AñoNatural","v":2018}]
[null,null,{"$f":"DíasYSemanas+DATE(AñoNatural,3,1)-WEEKDAY(DATE(AñoNatural,3,1),(InicioDeSemana=\"LUN\")+1)+1","v":"2018-02-25"},"2018-02-26","2018-02-27","2018-02-28","2018-03-01","2018-03-02","2018-03-03"]
[null,null,{"$f":"IF(DAY(CalendarDay)=1,CONCATENATE(\"Semana \",WEEKNUM(CalendarDay),\"/Día \",CalendarDay-DATE(YEAR(CalendarDay),1,0)),CONCATENATE(\"Día \",CalendarDay-DATE(YEAR(CalendarDay),1,0)))","v":"Día 56"},{"$f":"IF(DAY(CalendarDay)=1,CONCATENATE(\"Semana \",WEEKNUM(CalendarDay),\"/Día \",CalendarDay-DATE(YEAR(CalendarDay),1,0)),CONCATENATE(\"Día \",CalendarDay-DATE(YEAR(CalendarDay),1,0)))","v":"Día 57"},{"$f":"IF(DAY(CalendarDay)=1,CONCATENATE(\"Semana \",WEEKNUM(CalendarDay),\"/Día \",CalendarDay-DATE(YEAR(CalendarDay),1,0)),CONCATENATE(\"Día \",CalendarDay-DATE(YEAR(CalendarDay),1,0)))","v":"Día 58"},{"$f":"IF(DAY(CalendarDay)=1,CONCATENATE(\"Semana \",WEEKNUM(CalendarDay),\"/Día \",CalendarDay-DATE(YEAR(CalendarDay),1,0)),CONCATENATE(\"Día \",CalendarDay-DATE(YEAR(CalendarDay),1,0)))","v":"Día 59"},{"$f":"IF(DAY(CalendarDay)=1,CONCATENATE(\"Semana \",WEEKNUM(CalendarDay),\"/Día \",CalendarDay-DATE(YEAR(CalendarDay),1,0)),CONCATENATE(\"Día \",CalendarDay-DATE(YEAR(CalendarDay),1,0)))","v":"Semana 9/Día 60"},{"$f":"IF(DAY(CalendarDay)=1,CONCATENATE(\"Semana \",WEEKNUM(CalendarDay),\"/Día \",CalendarDay-DATE(YEAR(CalendarDay),1,0)),CONCATENATE(\"Día \",CalendarDay-DATE(YEAR(CalendarDay),1,0)))","v":"Día 61"},{"$f":"IF(DAY(CalendarDay)=1,CONCATENATE(\"Semana \",WEEKNUM(CalendarDay),\"/Día \",CalendarDay-DATE(YEAR(CalendarDay),1,0)),CONCATENATE(\"Día \",CalendarDay-DATE(YEAR(CalendarDay),1,0)))","v":"Día 62"}]
[]
[null,null,{"$f":"DíasYSemanas+DATE(AñoNatural,3,1)-WEEKDAY(DATE(AñoNatural,3,1),(InicioDeSemana=\"LUN\")+1)+8","v":"2018-03-04"},"2018-03-05","2018-03-06","2018-03-07","2018-03-08","2018-03-09","2018-03-10"]
[null,null,{"$f":"IF(WEEKDAY(CalendarDay)=ValorDeInicioDeSemana,CONCATENATE(\"Semana \",WEEKNUM(CalendarDay),\"/Día \",CalendarDay-DATE(YEAR(CalendarDay),1,0)),CONCATENATE(\"Día \",CalendarDay-DATE(YEAR(CalendarDay),1,0)))","v":"Semana 10/Día 63"},{"$f":"IF(WEEKDAY(CalendarDay)=ValorDeInicioDeSemana,CONCATENATE(\"Semana \",WEEKNUM(CalendarDay),\"/Día \",CalendarDay-DATE(YEAR(CalendarDay),1,0)),CONCATENATE(\"Día \",CalendarDay-DATE(YEAR(CalendarDay),1,0)))","v":"Día 64"},{"$f":"IF(WEEKDAY(CalendarDay)=ValorDeInicioDeSemana,CONCATENATE(\"Semana \",WEEKNUM(CalendarDay),\"/Día \",CalendarDay-DATE(YEAR(CalendarDay),1,0)),CONCATENATE(\"Día \",CalendarDay-DATE(YEAR(CalendarDay),1,0)))","v":"Día 65"},{"$f":"IF(WEEKDAY(CalendarDay)=ValorDeInicioDeSemana,CONCATENATE(\"Semana \",WEEKNUM(CalendarDay),\"/Día \",CalendarDay-DATE(YEAR(CalendarDay),1,0)),CONCATENATE(\"Día \",CalendarDay-DATE(YEAR(CalendarDay),1,0)))","v":"Día 66"},{"$f":"IF(WEEKDAY(CalendarDay)=ValorDeInicioDeSemana,CONCATENATE(\"Semana \",WEEKNUM(CalendarDay),\"/Día \",CalendarDay-DATE(YEAR(CalendarDay),1,0)),CONCATENATE(\"Día \",CalendarDay-DATE(YEAR(CalendarDay),1,0)))","v":"Día 67"},{"$f":"IF(WEEKDAY(CalendarDay)=ValorDeInicioDeSemana,CONCATENATE(\"Semana \",WEEKNUM(CalendarDay),\"/Día \",CalendarDay-DATE(YEAR(CalendarDay),1,0)),CONCATENATE(\"Día \",CalendarDay-DATE(YEAR(CalendarDay),1,0)))","v":"Día 68"},{"$f":"IF(WEEKDAY(CalendarDay)=ValorDeInicioDeSemana,CONCATENATE(\"Semana \",WEEKNUM(CalendarDay),\"/Día \",CalendarDay-DATE(YEAR(CalendarDay),1,0)),CONCATENATE(\"Día \",CalendarDay-DATE(YEAR(CalendarDay),1,0)))","v":"Día 69"}]
[]
[null,null,{"$f":"DíasYSemanas+DATE(AñoNatural,3,1)-WEEKDAY(DATE(AñoNatural,3,1),(InicioDeSemana=\"LUN\")+1)+15","v":"2018-03-11"},"2018-03-12","2018-03-13","2018-03-14","2018-03-15","2018-03-16","2018-03-17"]
[null,null,{"$f":"IF(WEEKDAY(CalendarDay)=ValorDeInicioDeSemana,CONCATENATE(\"Semana \",WEEKNUM(CalendarDay),\"/Día \",CalendarDay-DATE(YEAR(CalendarDay),1,0)),CONCATENATE(\"Día \",CalendarDay-DATE(YEAR(CalendarDay),1,0)))","v":"Semana 11/Día 70"},{"$f":"IF(WEEKDAY(CalendarDay)=ValorDeInicioDeSemana,CONCATENATE(\"Semana \",WEEKNUM(CalendarDay),\"/Día \",CalendarDay-DATE(YEAR(CalendarDay),1,0)),CONCATENATE(\"Día \",CalendarDay-DATE(YEAR(CalendarDay),1,0)))","v":"Día 71"},{"$f":"IF(WEEKDAY(CalendarDay)=ValorDeInicioDeSemana,CONCATENATE(\"Semana \",WEEKNUM(CalendarDay),\"/Día \",CalendarDay-DATE(YEAR(CalendarDay),1,0)),CONCATENATE(\"Día \",CalendarDay-DATE(YEAR(CalendarDay),1,0)))","v":"Día 72"},{"$f":"IF(WEEKDAY(CalendarDay)=ValorDeInicioDeSemana,CONCATENATE(\"Semana \",WEEKNUM(CalendarDay),\"/Día \",CalendarDay-DATE(YEAR(CalendarDay),1,0)),CONCATENATE(\"Día \",CalendarDay-DATE(YEAR(CalendarDay),1,0)))","v":"Día 73"},{"$f":"IF(WEEKDAY(CalendarDay)=ValorDeInicioDeSemana,CONCATENATE(\"Semana \",WEEKNUM(CalendarDay),\"/Día \",CalendarDay-DATE(YEAR(CalendarDay),1,0)),CONCATENATE(\"Día \",CalendarDay-DATE(YEAR(CalendarDay),1,0)))","v":"Día 74"},{"$f":"IF(WEEKDAY(CalendarDay)=ValorDeInicioDeSemana,CONCATENATE(\"Semana \",WEEKNUM(CalendarDay),\"/Día \",CalendarDay-DATE(YEAR(CalendarDay),1,0)),CONCATENATE(\"Día \",CalendarDay-DATE(YEAR(CalendarDay),1,0)))","v":"Día 75"},{"$f":"IF(WEEKDAY(CalendarDay)=ValorDeInicioDeSemana,CONCATENATE(\"Semana \",WEEKNUM(CalendarDay),\"/Día \",CalendarDay-DATE(YEAR(CalendarDay),1,0)),CONCATENATE(\"Día \",CalendarDay-DATE(YEAR(CalendarDay),1,0)))","v":"Día 76"}]
[]
[null,null,{"$f":"DíasYSemanas+DATE(AñoNatural,3,1)-WEEKDAY(DATE(AñoNatural,3,1),(InicioDeSemana=\"LUN\")+1)+22","v":"2018-03-18"},"2018-03-19","2018-03-20","2018-03-21","2018-03-22","2018-03-23","2018-03-24"]
[null,null,{"$f":"IF(WEEKDAY(CalendarDay)=ValorDeInicioDeSemana,CONCATENATE(\"Semana \",WEEKNUM(CalendarDay),\"/Día \",CalendarDay-DATE(YEAR(CalendarDay),1,0)),CONCATENATE(\"Día \",CalendarDay-DATE(YEAR(CalendarDay),1,0)))","v":"Semana 12/Día 77"},{"$f":"IF(WEEKDAY(CalendarDay)=ValorDeInicioDeSemana,CONCATENATE(\"Semana \",WEEKNUM(CalendarDay),\"/Día \",CalendarDay-DATE(YEAR(CalendarDay),1,0)),CONCATENATE(\"Día \",CalendarDay-DATE(YEAR(CalendarDay),1,0)))","v":"Día 78"},{"$f":"IF(WEEKDAY(CalendarDay)=ValorDeInicioDeSemana,CONCATENATE(\"Semana \",WEEKNUM(CalendarDay),\"/Día \",CalendarDay-DATE(YEAR(CalendarDay),1,0)),CONCATENATE(\"Día \",CalendarDay-DATE(YEAR(CalendarDay),1,0)))","v":"Día 79"},{"$f":"IF(WEEKDAY(CalendarDay)=ValorDeInicioDeSemana,CONCATENATE(\"Semana \",WEEKNUM(CalendarDay),\"/Día \",CalendarDay-DATE(YEAR(CalendarDay),1,0)),CONCATENATE(\"Día \",CalendarDay-DATE(YEAR(CalendarDay),1,0)))","v":"Día 80"},{"$f":"IF(WEEKDAY(CalendarDay)=ValorDeInicioDeSemana,CONCATENATE(\"Semana \",WEEKNUM(CalendarDay),\"/Día \",CalendarDay-DATE(YEAR(CalendarDay),1,0)),CONCATENATE(\"Día \",CalendarDay-DATE(YEAR(CalendarDay),1,0)))","v":"Día 81"},{"$f":"IF(WEEKDAY(CalendarDay)=ValorDeInicioDeSemana,CONCATENATE(\"Semana \",WEEKNUM(CalendarDay),\"/Día \",CalendarDay-DATE(YEAR(CalendarDay),1,0)),CONCATENATE(\"Día \",CalendarDay-DATE(YEAR(CalendarDay),1,0)))","v":"Día 82"},{"$f":"IF(WEEKDAY(CalendarDay)=ValorDeInicioDeSemana,CONCATENATE(\"Semana \",WEEKNUM(CalendarDay),\"/Día \",CalendarDay-DATE(YEAR(CalendarDay),1,0)),CONCATENATE(\"Día \",CalendarDay-DATE(YEAR(CalendarDay),1,0)))","v":"Día 83"}]
[]
[null,null,{"$f":"DíasYSemanas+DATE(AñoNatural,3,1)-WEEKDAY(DATE(AñoNatural,3,1),(InicioDeSemana=\"LUN\")+1)+29","v":"2018-03-25"},"2018-03-26","2018-03-27","2018-03-28","2018-03-29","2018-03-30","2018-03-31"]
[null,null,{"$f":"IF(WEEKDAY(CalendarDay)=ValorDeInicioDeSemana,CONCATENATE(\"Semana \",WEEKNUM(CalendarDay),\"/Día \",CalendarDay-DATE(YEAR(CalendarDay),1,0)),CONCATENATE(\"Día \",CalendarDay-DATE(YEAR(CalendarDay),1,0)))","v":"Semana 13/Día 84"},{"$f":"IF(WEEKDAY(CalendarDay)=ValorDeInicioDeSemana,CONCATENATE(\"Semana \",WEEKNUM(CalendarDay),\"/Día \",CalendarDay-DATE(YEAR(CalendarDay),1,0)),CONCATENATE(\"Día \",CalendarDay-DATE(YEAR(CalendarDay),1,0)))","v":"Día 85"},{"$f":"IF(WEEKDAY(CalendarDay)=ValorDeInicioDeSemana,CONCATENATE(\"Semana \",WEEKNUM(CalendarDay),\"/Día \",CalendarDay-DATE(YEAR(CalendarDay),1,0)),CONCATENATE(\"Día \",CalendarDay-DATE(YEAR(CalendarDay),1,0)))","v":"Día 86"},{"$f":"IF(WEEKDAY(CalendarDay)=ValorDeInicioDeSemana,CONCATENATE(\"Semana \",WEEKNUM(CalendarDay),\"/Día \",CalendarDay-DATE(YEAR(CalendarDay),1,0)),CONCATENATE(\"Día \",CalendarDay-DATE(YEAR(CalendarDay),1,0)))","v":"Día 87"},{"$f":"IF(WEEKDAY(CalendarDay)=ValorDeInicioDeSemana,CONCATENATE(\"Semana \",WEEKNUM(CalendarDay),\"/Día \",CalendarDay-DATE(YEAR(CalendarDay),1,0)),CONCATENATE(\"Día \",CalendarDay-DATE(YEAR(CalendarDay),1,0)))","v":"Día 88"},{"$f":"IF(WEEKDAY(CalendarDay)=ValorDeInicioDeSemana,CONCATENATE(\"Semana \",WEEKNUM(CalendarDay),\"/Día \",CalendarDay-DATE(YEAR(CalendarDay),1,0)),CONCATENATE(\"Día \",CalendarDay-DATE(YEAR(CalendarDay),1,0)))","v":"Día 89"},{"$f":"IF(WEEKDAY(CalendarDay)=ValorDeInicioDeSemana,CONCATENATE(\"Semana \",WEEKNUM(CalendarDay),\"/Día \",CalendarDay-DATE(YEAR(CalendarDay),1,0)),CONCATENATE(\"Día \",CalendarDay-DATE(YEAR(CalendarDay),1,0)))","v":"Día 90"}]
[{"$nulls":4},"NOTAS"]
[]
[null,null,{"$f":"DíasYSemanas+DATE(AñoNatural,3,1)-WEEKDAY(DATE(AñoNatural,3,1),(InicioDeSemana=\"LUN\")+1)+36","v":"2018-04-01"},"2018-04-02"]
[null,null,{"$f":"IF(WEEKDAY(CalendarDay)=ValorDeInicioDeSemana,CONCATENATE(\"Semana \",WEEKNUM(CalendarDay),\"/Día \",CalendarDay-DATE(YEAR(CalendarDay),1,0)),CONCATENATE(\"Día \",CalendarDay-DATE(YEAR(CalendarDay),1,0)))","v":"Semana 14/Día 91"},{"$f":"IF(WEEKDAY(CalendarDay)=ValorDeInicioDeSemana,CONCATENATE(\"Semana \",WEEKNUM(CalendarDay),\"/Día \",CalendarDay-DATE(YEAR(CalendarDay),1,0)),CONCATENATE(\"Día \",CalendarDay-DATE(YEAR(CalendarDay),1,0)))","v":"Día 92"}]

{"sheet":"ABR","index":3,"n_rows":20,"n_cols":9,"rows_kept":20,"merged":[[16,2,17,2],[17,4,19,8]]}
[null,"ABR",{"$f":"UPPER(TEXT(InicioDeSemana,\"ddd\"))","v":"DOM"},{"$f":"UPPER(TEXT(D3,\"ddd\"))","v":"LUN"},{"$f":"UPPER(TEXT(E3,\"ddd\"))","v":"MAR"},{"$f":"UPPER(TEXT(F3,\"ddd\"))","v":"MIÉ"},{"$f":"UPPER(TEXT(G3,\"ddd\"))","v":"JUE"},{"$f":"UPPER(TEXT(H3,\"ddd\"))","v":"VIE"},{"$f":"UPPER(TEXT(I3,\"ddd\"))","v":"SÁB"}]
[null,{"$f":"AñoNatural","v":2018}]
[null,null,{"$f":"DíasYSemanas+DATE(AñoNatural,4,1)-WEEKDAY(DATE(AñoNatural,4,1),(InicioDeSemana=\"LUN\")+1)+1","v":"2018-04-01"},"2018-04-02","2018-04-03","2018-04-04","2018-04-05","2018-04-06","2018-04-07"]
[null,null,{"$f":"IF(DAY(CalendarDay)=1,CONCATENATE(\"Semana \",WEEKNUM(CalendarDay),\"/Día \",CalendarDay-DATE(YEAR(CalendarDay),1,0)),CONCATENATE(\"Día \",CalendarDay-DATE(YEAR(CalendarDay),1,0)))","v":"Semana 14/Día 91"},{"$f":"IF(DAY(CalendarDay)=1,CONCATENATE(\"Semana \",WEEKNUM(CalendarDay),\"/Día \",CalendarDay-DATE(YEAR(CalendarDay),1,0)),CONCATENATE(\"Día \",CalendarDay-DATE(YEAR(CalendarDay),1,0)))","v":"Día 92"},{"$f":"IF(DAY(CalendarDay)=1,CONCATENATE(\"Semana \",WEEKNUM(CalendarDay),\"/Día \",CalendarDay-DATE(YEAR(CalendarDay),1,0)),CONCATENATE(\"Día \",CalendarDay-DATE(YEAR(CalendarDay),1,0)))","v":"Día 93"},{"$f":"IF(DAY(CalendarDay)=1,CONCATENATE(\"Semana \",WEEKNUM(CalendarDay),\"/Día \",CalendarDay-DATE(YEAR(CalendarDay),1,0)),CONCATENATE(\"Día \",CalendarDay-DATE(YEAR(CalendarDay),1,0)))","v":"Día 94"},{"$f":"IF(DAY(CalendarDay)=1,CONCATENATE(\"Semana \",WEEKNUM(CalendarDay),\"/Día \",CalendarDay-DATE(YEAR(CalendarDay),1,0)),CONCATENATE(\"Día \",CalendarDay-DATE(YEAR(CalendarDay),1,0)))","v":"Día 95"},{"$f":"IF(DAY(CalendarDay)=1,CONCATENATE(\"Semana \",WEEKNUM(CalendarDay),\"/Día \",CalendarDay-DATE(YEAR(CalendarDay),1,0)),CONCATENATE(\"Día \",CalendarDay-DATE(YEAR(CalendarDay),1,0)))","v":"Día 96"},{"$f":"IF(DAY(CalendarDay)=1,CONCATENATE(\"Semana \",WEEKNUM(CalendarDay),\"/Día \",CalendarDay-DATE(YEAR(CalendarDay),1,0)),CONCATENATE(\"Día \",CalendarDay-DATE(YEAR(CalendarDay),1,0)))","v":"Día 97"}]
[]
[null,null,{"$f":"DíasYSemanas+DATE(AñoNatural,4,1)-WEEKDAY(DATE(AñoNatural,4,1),(InicioDeSemana=\"LUN\")+1)+8","v":"2018-04-08"},"2018-04-09","2018-04-10","2018-04-11","2018-04-12","2018-04-13","2018-04-14"]
[null,null,{"$f":"IF(WEEKDAY(CalendarDay)=ValorDeInicioDeSemana,CONCATENATE(\"Semana \",WEEKNUM(CalendarDay),\"/Día \",CalendarDay-DATE(YEAR(CalendarDay),1,0)),CONCATENATE(\"Día \",CalendarDay-DATE(YEAR(CalendarDay),1,0)))","v":"Semana 15/Día 98"},{"$f":"IF(WEEKDAY(CalendarDay)=ValorDeInicioDeSemana,CONCATENATE(\"Semana \",WEEKNUM(CalendarDay),\"/Día \",CalendarDay-DATE(YEAR(CalendarDay),1,0)),CONCATENATE(\"Día \",CalendarDay-DATE(YEAR(CalendarDay),1,0)))","v":"Día 99"},{"$f":"IF(WEEKDAY(CalendarDay)=ValorDeInicioDeSemana,CONCATENATE(\"Semana \",WEEKNUM(CalendarDay),\"/Día \",CalendarDay-DATE(YEAR(CalendarDay),1,0)),CONCATENATE(\"Día \",CalendarDay-DATE(YEAR(CalendarDay),1,0)))","v":"Día 100"},{"$f":"IF(WEEKDAY(CalendarDay)=ValorDeInicioDeSemana,CONCATENATE(\"Semana \",WEEKNUM(CalendarDay),\"/Día \",CalendarDay-DATE(YEAR(CalendarDay),1,0)),CONCATENATE(\"Día \",CalendarDay-DATE(YEAR(CalendarDay),1,0)))","v":"Día 101"},{"$f":"IF(WEEKDAY(CalendarDay)=ValorDeInicioDeSemana,CONCATENATE(\"Semana \",WEEKNUM(CalendarDay),\"/Día \",CalendarDay-DATE(YEAR(CalendarDay),1,0)),CONCATENATE(\"Día \",CalendarDay-DATE(YEAR(CalendarDay),1,0)))","v":"Día 102"},{"$f":"IF(WEEKDAY(CalendarDay)=ValorDeInicioDeSemana,CONCATENATE(\"Semana \",WEEKNUM(CalendarDay),\"/Día \",CalendarDay-DATE(YEAR(CalendarDay),1,0)),CONCATENATE(\"Día \",CalendarDay-DATE(YEAR(CalendarDay),1,0)))","v":"Día 103"},{"$f":"IF(WEEKDAY(CalendarDay)=ValorDeInicioDeSemana,CONCATENATE(\"Semana \",WEEKNUM(CalendarDay),\"/Día \",CalendarDay-DATE(YEAR(CalendarDay),1,0)),CONCATENATE(\"Día \",CalendarDay-DATE(YEAR(CalendarDay),1,0)))","v":"Día 104"}]
[]
[null,null,{"$f":"DíasYSemanas+DATE(AñoNatural,4,1)-WEEKDAY(DATE(AñoNatural,4,1),(InicioDeSemana=\"LUN\")+1)+15","v":"2018-04-15"},"2018-04-16","2018-04-17","2018-04-18","2018-04-19","2018-04-20","2018-04-21"]
[null,null,{"$f":"IF(WEEKDAY(CalendarDay)=ValorDeInicioDeSemana,CONCATENATE(\"Semana \",WEEKNUM(CalendarDay),\"/Día \",CalendarDay-DATE(YEAR(CalendarDay),1,0)),CONCATENATE(\"Día \",CalendarDay-DATE(YEAR(CalendarDay),1,0)))","v":"Semana 16/Día 105"},{"$f":"IF(WEEKDAY(CalendarDay)=ValorDeInicioDeSemana,CONCATENATE(\"Semana \",WEEKNUM(CalendarDay),\"/Día \",CalendarDay-DATE(YEAR(CalendarDay),1,0)),CONCATENATE(\"Día \",CalendarDay-DATE(YEAR(CalendarDay),1,0)))","v":"Día 106"},{"$f":"IF(WEEKDAY(CalendarDay)=ValorDeInicioDeSemana,CONCATENATE(\"Semana \",WEEKNUM(CalendarDay),\"/Día \",CalendarDay-DATE(YEAR(CalendarDay),1,0)),CONCATENATE(\"Día \",CalendarDay-DATE(YEAR(CalendarDay),1,0)))","v":"Día 107"},{"$f":"IF(WEEKDAY(CalendarDay)=ValorDeInicioDeSemana,CONCATENATE(\"Semana \",WEEKNUM(CalendarDay),\"/Día \",CalendarDay-DATE(YEAR(CalendarDay),1,0)),CONCATENATE(\"Día \",CalendarDay-DATE(YEAR(CalendarDay),1,0)))","v":"Día 108"},{"$f":"IF(WEEKDAY(CalendarDay)=ValorDeInicioDeSemana,CONCATENATE(\"Semana \",WEEKNUM(CalendarDay),\"/Día \",CalendarDay-DATE(YEAR(CalendarDay),1,0)),CONCATENATE(\"Día \",CalendarDay-DATE(YEAR(CalendarDay),1,0)))","v":"Día 109"},{"$f":"IF(WEEKDAY(CalendarDay)=ValorDeInicioDeSemana,CONCATENATE(\"Semana \",WEEKNUM(CalendarDay),\"/Día \",CalendarDay-DATE(YEAR(CalendarDay),1,0)),CONCATENATE(\"Día \",CalendarDay-DATE(YEAR(CalendarDay),1,0)))","v":"Día 110"},{"$f":"IF(WEEKDAY(CalendarDay)=ValorDeInicioDeSemana,CONCATENATE(\"Semana \",WEEKNUM(CalendarDay),\"/Día \",CalendarDay-DATE(YEAR(CalendarDay),1,0)),CONCATENATE(\"Día \",CalendarDay-DATE(YEAR(CalendarDay),1,0)))","v":"Día 111"}]
[]
[null,null,{"$f":"DíasYSemanas+DATE(AñoNatural,4,1)-WEEKDAY(DATE(AñoNatural,4,1),(InicioDeSemana=\"LUN\")+1)+22","v":"2018-04-22"},"2018-04-23","2018-04-24","2018-04-25","2018-04-26","2018-04-27","2018-04-28"]
[null,null,{"$f":"IF(WEEKDAY(CalendarDay)=ValorDeInicioDeSemana,CONCATENATE(\"Semana \",WEEKNUM(CalendarDay),\"/Día \",CalendarDay-DATE(YEAR(CalendarDay),1,0)),CONCATENATE(\"Día \",CalendarDay-DATE(YEAR(CalendarDay),1,0)))","v":"Semana 17/Día 112"},{"$f":"IF(WEEKDAY(CalendarDay)=ValorDeInicioDeSemana,CONCATENATE(\"Semana \",WEEKNUM(CalendarDay),\"/Día \",CalendarDay-DATE(YEAR(CalendarDay),1,0)),CONCATENATE(\"Día \",CalendarDay-DATE(YEAR(CalendarDay),1,0)))","v":"Día 113"},{"$f":"IF(WEEKDAY(CalendarDay)=ValorDeInicioDeSemana,CONCATENATE(\"Semana \",WEEKNUM(CalendarDay),\"/Día \",CalendarDay-DATE(YEAR(CalendarDay),1,0)),CONCATENATE(\"Día \",CalendarDay-DATE(YEAR(CalendarDay),1,0)))","v":"Día 114"},{"$f":"IF(WEEKDAY(CalendarDay)=ValorDeInicioDeSemana,CONCATENATE(\"Semana \",WEEKNUM(CalendarDay),\"/Día \",CalendarDay-DATE(YEAR(CalendarDay),1,0)),CONCATENATE(\"Día \",CalendarDay-DATE(YEAR(CalendarDay),1,0)))","v":"Día 115"},{"$f":"IF(WEEKDAY(CalendarDay)=ValorDeInicioDeSemana,CONCATENATE(\"Semana \",WEEKNUM(CalendarDay),\"/Día \",CalendarDay-DATE(YEAR(CalendarDay),1,0)),CONCATENATE(\"Día \",CalendarDay-DATE(YEAR(CalendarDay),1,0)))","v":"Día 116"},{"$f":"IF(WEEKDAY(CalendarDay)=ValorDeInicioDeSemana,CONCATENATE(\"Semana \",WEEKNUM(CalendarDay),\"/Día \",CalendarDay-DATE(YEAR(CalendarDay),1,0)),CONCATENATE(\"Día \",CalendarDay-DATE(YEAR(CalendarDay),1,0)))","v":"Día 117"},{"$f":"IF(WEEKDAY(CalendarDay)=ValorDeInicioDeSemana,CONCATENATE(\"Semana \",WEEKNUM(CalendarDay),\"/Día \",CalendarDay-DATE(YEAR(CalendarDay),1,0)),CONCATENATE(\"Día \",CalendarDay-DATE(YEAR(CalendarDay),1,0)))","v":"Día 118"}]
[]
[null,null,{"$f":"DíasYSemanas+DATE(AñoNatural,4,1)-WEEKDAY(DATE(AñoNatural,4,1),(InicioDeSemana=\"LUN\")+1)+29","v":"2018-04-29"},"2018-04-30","2018-05-01","2018-05-02","2018-05-03","2018-05-04","2018-05-05"]
[null,null,{"$f":"IF(WEEKDAY(CalendarDay)=ValorDeInicioDeSemana,CONCATENATE(\"Semana \",WEEKNUM(CalendarDay),\"/Día \",CalendarDay-DATE(YEAR(CalendarDay),1,0)),CONCATENATE(\"Día \",CalendarDay-DATE(YEAR(CalendarDay),1,0)))","v":"Semana 18/Día 119"},{"$f":"IF(WEEKDAY(CalendarDay)=ValorDeInicioDeSemana,CONCATENATE(\"Semana \",WEEKNUM(CalendarDay),\"/Día \",CalendarDay-DATE(YEAR(CalendarDay),1,0)),CONCATENATE(\"Día \",CalendarDay-DATE(YEAR(CalendarDay),1,0)))","v":"Día 120"},{"$f":"IF(WEEKDAY(CalendarDay)=ValorDeInicioDeSemana,CONCATENATE(\"Semana \",WEEKNUM(CalendarDay),\"/Día \",CalendarDay-DATE(YEAR(CalendarDay),1,0)),CONCATENATE(\"Día \",CalendarDay-DATE(YEAR(CalendarDay),1,0)))","v":"Día 121"},{"$f":"IF(WEEKDAY(CalendarDay)=ValorDeInicioDeSemana,CONCATENATE(\"Semana \",WEEKNUM(CalendarDay),\"/Día \",CalendarDay-DATE(YEAR(CalendarDay),1,0)),CONCATENATE(\"Día \",CalendarDay-DATE(YEAR(CalendarDay),1,0)))","v":"Día 122"},{"$f":"IF(WEEKDAY(CalendarDay)=ValorDeInicioDeSemana,CONCATENATE(\"Semana \",WEEKNUM(CalendarDay),\"/Día \",CalendarDay-DATE(YEAR(CalendarDay),1,0)),CONCATENATE(\"Día \",CalendarDay-DATE(YEAR(CalendarDay),1,0)))","v":"Día 123"},{"$f":"IF(WEEKDAY(CalendarDay)=ValorDeInicioDeSemana,CONCATENATE(\"Semana \",WEEKNUM(CalendarDay),\"/Día \",CalendarDay-DATE(YEAR(CalendarDay),1,0)),CONCATENATE(\"Día \",CalendarDay-DATE(YEAR(CalendarDay),1,0)))","v":"Día 124"},{"$f":"IF(WEEKDAY(CalendarDay)=ValorDeInicioDeSemana,CONCATENATE(\"Semana \",WEEKNUM(CalendarDay),\"/Día \",CalendarDay-DATE(YEAR(CalendarDay),1,0)),CONCATENATE(\"Día \",CalendarDay-DATE(YEAR(CalendarDay),1,0)))","v":"Día 125"}]
[{"$nulls":4},"NOTAS"]
[]
[null,null,{"$f":"DíasYSemanas+DATE(AñoNatural,4,1)-WEEKDAY(DATE(AñoNatural,4,1),(InicioDeSemana=\"LUN\")+1)+36","v":"2018-05-06"},"2018-05-07"]
[null,null,{"$f":"IF(WEEKDAY(CalendarDay)=ValorDeInicioDeSemana,CONCATENATE(\"Semana \",WEEKNUM(CalendarDay),\"/Día \",CalendarDay-DATE(YEAR(CalendarDay),1,0)),CONCATENATE(\"Día \",CalendarDay-DATE(YEAR(CalendarDay),1,0)))","v":"Semana 19/Día 126"},{"$f":"IF(WEEKDAY(CalendarDay)=ValorDeInicioDeSemana,CONCATENATE(\"Semana \",WEEKNUM(CalendarDay),\"/Día \",CalendarDay-DATE(YEAR(CalendarDay),1,0)),CONCATENATE(\"Día \",CalendarDay-DATE(YEAR(CalendarDay),1,0)))","v":"Día 127"}]

{"sheet":"MAY","index":4,"n_rows":20,"n_cols":9,"rows_kept":20,"merged":[[16,2,17,2],[17,4,19,8]]}
[null,"MAY",{"$f":"UPPER(TEXT(InicioDeSemana,\"ddd\"))","v":"DOM"},{"$f":"UPPER(TEXT(D3,\"ddd\"))","v":"LUN"},{"$f":"UPPER(TEXT(E3,\"ddd\"))","v":"MAR"},{"$f":"UPPER(TEXT(F3,\"ddd\"))","v":"MIÉ"},{"$f":"UPPER(TEXT(G3,\"ddd\"))","v":"JUE"},{"$f":"UPPER(TEXT(H3,\"ddd\"))","v":"VIE"},{"$f":"UPPER(TEXT(I3,\"ddd\"))","v":"SÁB"}]
[null,{"$f":"AñoNatural","v":2018}]
[null,null,{"$f":"DíasYSemanas+DATE(AñoNatural,5,1)-WEEKDAY(DATE(AñoNatural,5,1),(InicioDeSemana=\"LUN\")+1)+1","v":"2018-04-29"},"2018-04-30","2018-05-01","2018-05-02","2018-05-03","2018-05-04","2018-05-05"]
[null,null,{"$f":"IF(DAY(CalendarDay)=1,CONCATENATE(\"Semana \",WEEKNUM(CalendarDay),\"/Día \",CalendarDay-DATE(YEAR(CalendarDay),1,0)),CONCATENATE(\"Día \",CalendarDay-DATE(YEAR(CalendarDay),1,0)))","v":"Día 119"},{"$f":"IF(DAY(CalendarDay)=1,CONCATENATE(\"Semana \",WEEKNUM(CalendarDay),\"/Día \",CalendarDay-DATE(YEAR(CalendarDay),1,0)),CONCATENATE(\"Día \",CalendarDay-DATE(YEAR(CalendarDay),1,0)))","v":"Día 120"},{"$f":"IF(DAY(CalendarDay)=1,CONCATENATE(\"Semana \",WEEKNUM(CalendarDay),\"/Día \",CalendarDay-DATE(YEAR(CalendarDay),1,0)),CONCATENATE(\"Día \",CalendarDay-DATE(YEAR(CalendarDay),1,0)))","v":"Semana 18/Día 121"},{"$f":"IF(DAY(CalendarDay)=1,CONCATENATE(\"Semana \",WEEKNUM(CalendarDay),\"/Día \",CalendarDay-DATE(YEAR(CalendarDay),1,0)),CONCATENATE(\"Día \",CalendarDay-DATE(YEAR(CalendarDay),1,0)))","v":"Día 122"},{"$f":"IF(DAY(CalendarDay)=1,CONCATENATE(\"Semana \",WEEKNUM(CalendarDay),\"/Día \",CalendarDay-DATE(YEAR(CalendarDay),1,0)),CONCATENATE(\"Día \",CalendarDay-DATE(YEAR(CalendarDay),1,0)))","v":"Día 123"},{"$f":"IF(DAY(CalendarDay)=1,CONCATENATE(\"Semana \",WEEKNUM(CalendarDay),\"/Día \",CalendarDay-DATE(YEAR(CalendarDay),1,0)),CONCATENATE(\"Día \",CalendarDay-DATE(YEAR(CalendarDay),1,0)))","v":"Día 124"},{"$f":"IF(DAY(CalendarDay)=1,CONCATENATE(\"Semana \",WEEKNUM(CalendarDay),\"/Día \",CalendarDay-DATE(YEAR(CalendarDay),1,0)),CONCATENATE(\"Día \",CalendarDay-DATE(YEAR(CalendarDay),1,0)))","v":"Día 125"}]
[]
[null,null,{"$f":"DíasYSemanas+DATE(AñoNatural,5,1)-WEEKDAY(DATE(AñoNatural,5,1),(InicioDeSemana=\"LUN\")+1)+8","v":"2018-05-06"},"2018-05-07","2018-05-08","2018-05-09","2018-05-10","2018-05-11","2018-05-12"]
[null,null,{"$f":"IF(WEEKDAY(CalendarDay)=ValorDeInicioDeSemana,CONCATENATE(\"Semana \",WEEKNUM(CalendarDay),\"/Día \",CalendarDay-DATE(YEAR(CalendarDay),1,0)),CONCATENATE(\"Día \",CalendarDay-DATE(YEAR(CalendarDay),1,0)))","v":"Semana 19/Día 126"},{"$f":"IF(WEEKDAY(CalendarDay)=ValorDeInicioDeSemana,CONCATENATE(\"Semana \",WEEKNUM(CalendarDay),\"/Día \",CalendarDay-DATE(YEAR(CalendarDay),1,0)),CONCATENATE(\"Día \",CalendarDay-DATE(YEAR(CalendarDay),1,0)))","v":"Día 127"},{"$f":"IF(WEEKDAY(CalendarDay)=ValorDeInicioDeSemana,CONCATENATE(\"Semana \",WEEKNUM(CalendarDay),\"/Día \",CalendarDay-DATE(YEAR(CalendarDay),1,0)),CONCATENATE(\"Día \",CalendarDay-DATE(YEAR(CalendarDay),1,0)))","v":"Día 128"},{"$f":"IF(WEEKDAY(CalendarDay)=ValorDeInicioDeSemana,CONCATENATE(\"Semana \",WEEKNUM(CalendarDay),\"/Día \",CalendarDay-DATE(YEAR(CalendarDay),1,0)),CONCATENATE(\"Día \",CalendarDay-DATE(YEAR(CalendarDay),1,0)))","v":"Día 129"},{"$f":"IF(WEEKDAY(CalendarDay)=ValorDeInicioDeSemana,CONCATENATE(\"Semana \",WEEKNUM(CalendarDay),\"/Día \",CalendarDay-DATE(YEAR(CalendarDay),1,0)),CONCATENATE(\"Día \",CalendarDay-DATE(YEAR(CalendarDay),1,0)))","v":"Día 130"},{"$f":"IF(WEEKDAY(CalendarDay)=ValorDeInicioDeSemana,CONCATENATE(\"Semana \",WEEKNUM(CalendarDay),\"/Día \",CalendarDay-DATE(YEAR(CalendarDay),1,0)),CONCATENATE(\"Día \",CalendarDay-DATE(YEAR(CalendarDay),1,0)))","v":"Día 131"},{"$f":"IF(WEEKDAY(CalendarDay)=ValorDeInicioDeSemana,CONCATENATE(\"Semana \",WEEKNUM(CalendarDay),\"/Día \",CalendarDay-DATE(YEAR(CalendarDay),1,0)),CONCATENATE(\"Día \",CalendarDay-DATE(YEAR(CalendarDay),1,0)))","v":"Día 132"}]
[]
[null,null,{"$f":"DíasYSemanas+DATE(AñoNatural,5,1)-WEEKDAY(DATE(AñoNatural,5,1),(InicioDeSemana=\"LUN\")+1)+15","v":"2018-05-13"},"2018-05-14","2018-05-15","2018-05-16","2018-05-17","2018-05-18","2018-05-19"]
[null,null,{"$f":"IF(WEEKDAY(CalendarDay)=ValorDeInicioDeSemana,CONCATENATE(\"Semana \",WEEKNUM(CalendarDay),\"/Día \",CalendarDay-DATE(YEAR(CalendarDay),1,0)),CONCATENATE(\"Día \",CalendarDay-DATE(YEAR(CalendarDay),1,0)))","v":"Semana 20/Día 133"},{"$f":"IF(WEEKDAY(CalendarDay)=ValorDeInicioDeSemana,CONCATENATE(\"Semana \",WEEKNUM(CalendarDay),\"/Día \",CalendarDay-DATE(YEAR(CalendarDay),1,0)),CONCATENATE(\"Día \",CalendarDay-DATE(YEAR(CalendarDay),1,0)))","v":"Día 134"},{"$f":"IF(WEEKDAY(CalendarDay)=ValorDeInicioDeSemana,CONCATENATE(\"Semana \",WEEKNUM(CalendarDay),\"/Día \",CalendarDay-DATE(YEAR(CalendarDay),1,0)),CONCATENATE(\"Día \",CalendarDay-DATE(YEAR(CalendarDay),1,0)))","v":"Día 135"},{"$f":"IF(WEEKDAY(CalendarDay)=ValorDeInicioDeSemana,CONCATENATE(\"Semana \",WEEKNUM(CalendarDay),\"/Día \",CalendarDay-DATE(YEAR(CalendarDay),1,0)),CONCATENATE(\"Día \",CalendarDay-DATE(YEAR(CalendarDay),1,0)))","v":"Día 136"},{"$f":"IF(WEEKDAY(CalendarDay)=ValorDeInicioDeSemana,CONCATENATE(\"Semana \",WEEKNUM(CalendarDay),\"/Día \",CalendarDay-DATE(YEAR(CalendarDay),1,0)),CONCATENATE(\"Día \",CalendarDay-DATE(YEAR(CalendarDay),1,0)))","v":"Día 137"},{"$f":"IF(WEEKDAY(CalendarDay)=ValorDeInicioDeSemana,CONCATENATE(\"Semana \",WEEKNUM(CalendarDay),\"/Día \",CalendarDay-DATE(YEAR(CalendarDay),1,0)),CONCATENATE(\"Día \",CalendarDay-DATE(YEAR(CalendarDay),1,0)))","v":"Día 138"},{"$f":"IF(WEEKDAY(CalendarDay)=ValorDeInicioDeSemana,CONCATENATE(\"Semana \",WEEKNUM(CalendarDay),\"/Día \",CalendarDay-DATE(YEAR(CalendarDay),1,0)),CONCATENATE(\"Día \",CalendarDay-DATE(YEAR(CalendarDay),1,0)))","v":"Día 139"}]
[]
[null,null,{"$f":"DíasYSemanas+DATE(AñoNatural,5,1)-WEEKDAY(DATE(AñoNatural,5,1),(InicioDeSemana=\"LUN\")+1)+22","v":"2018-05-20"},"2018-05-21","2018-05-22","2018-05-23","2018-05-24","2018-05-25","2018-05-26"]
[null,null,{"$f":"IF(WEEKDAY(CalendarDay)=ValorDeInicioDeSemana,CONCATENATE(\"Semana \",WEEKNUM(CalendarDay),\"/Día \",CalendarDay-DATE(YEAR(CalendarDay),1,0)),CONCATENATE(\"Día \",CalendarDay-DATE(YEAR(CalendarDay),1,0)))","v":"Semana 21/Día 140"},{"$f":"IF(WEEKDAY(CalendarDay)=ValorDeInicioDeSemana,CONCATENATE(\"Semana \",WEEKNUM(CalendarDay),\"/Día \",CalendarDay-DATE(YEAR(CalendarDay),1,0)),CONCATENATE(\"Día \",CalendarDay-DATE(YEAR(CalendarDay),1,0)))","v":"Día 141"},{"$f":"IF(WEEKDAY(CalendarDay)=ValorDeInicioDeSemana,CONCATENATE(\"Semana \",WEEKNUM(CalendarDay),\"/Día \",CalendarDay-DATE(YEAR(CalendarDay),1,0)),CONCATENATE(\"Día \",CalendarDay-DATE(YEAR(CalendarDay),1,0)))","v":"Día 142"},{"$f":"IF(WEEKDAY(CalendarDay)=ValorDeInicioDeSemana,CONCATENATE(\"Semana \",WEEKNUM(CalendarDay),\"/Día \",CalendarDay-DATE(YEAR(CalendarDay),1,0)),CONCATENATE(\"Día \",CalendarDay-DATE(YEAR(CalendarDay),1,0)))","v":"Día 143"},{"$f":"IF(WEEKDAY(CalendarDay)=ValorDeInicioDeSemana,CONCATENATE(\"Semana \",WEEKNUM(CalendarDay),\"/Día \",CalendarDay-DATE(YEAR(CalendarDay),1,0)),CONCATENATE(\"Día \",CalendarDay-DATE(YEAR(CalendarDay),1,0)))","v":"Día 144"},{"$f":"IF(WEEKDAY(CalendarDay)=ValorDeInicioDeSemana,CONCATENATE(\"Semana \",WEEKNUM(CalendarDay),\"/Día \",CalendarDay-DATE(YEAR(CalendarDay),1,0)),CONCATENATE(\"Día \",CalendarDay-DATE(YEAR(CalendarDay),1,0)))","v":"Día 145"},{"$f":"IF(WEEKDAY(CalendarDay)=ValorDeInicioDeSemana,CONCATENATE(\"Semana \",WEEKNUM(CalendarDay),\"/Día \",CalendarDay-DATE(YEAR(CalendarDay),1,0)),CONCATENATE(\"Día \",CalendarDay-DATE(YEAR(CalendarDay),1,0)))","v":"Día 146"}]
[]
[null,null,{"$f":"DíasYSemanas+DATE(AñoNatural,5,1)-WEEKDAY(DATE(AñoNatural,5,1),(InicioDeSemana=\"LUN\")+1)+29","v":"2018-05-27"},"2018-05-28","2018-05-29","2018-05-30","2018-05-31","2018-06-01","2018-06-02"]
[null,null,{"$f":"IF(WEEKDAY(CalendarDay)=ValorDeInicioDeSemana,CONCATENATE(\"Semana \",WEEKNUM(CalendarDay),\"/Día \",CalendarDay-DATE(YEAR(CalendarDay),1,0)),CONCATENATE(\"Día \",CalendarDay-DATE(YEAR(CalendarDay),1,0)))","v":"Semana 22/Día 147"},{"$f":"IF(WEEKDAY(CalendarDay)=ValorDeInicioDeSemana,CONCATENATE(\"Semana \",WEEKNUM(CalendarDay),\"/Día \",CalendarDay-DATE(YEAR(CalendarDay),1,0)),CONCATENATE(\"Día \",CalendarDay-DATE(YEAR(CalendarDay),1,0)))","v":"Día 148"},{"$f":"IF(WEEKDAY(CalendarDay)=ValorDeInicioDeSemana,CONCATENATE(\"Semana \",WEEKNUM(CalendarDay),\"/Día \",CalendarDay-DATE(YEAR(CalendarDay),1,0)),CONCATENATE(\"Día \",CalendarDay-DATE(YEAR(CalendarDay),1,0)))","v":"Día 149"},{"$f":"IF(WEEKDAY(CalendarDay)=ValorDeInicioDeSemana,CONCATENATE(\"Semana \",WEEKNUM(CalendarDay),\"/Día \",CalendarDay-DATE(YEAR(CalendarDay),1,0)),CONCATENATE(\"Día \",CalendarDay-DATE(YEAR(CalendarDay),1,0)))","v":"Día 150"},{"$f":"IF(WEEKDAY(CalendarDay)=ValorDeInicioDeSemana,CONCATENATE(\"Semana \",WEEKNUM(CalendarDay),\"/Día \",CalendarDay-DATE(YEAR(CalendarDay),1,0)),CONCATENATE(\"Día \",CalendarDay-DATE(YEAR(CalendarDay),1,0)))","v":"Día 151"},{"$f":"IF(WEEKDAY(CalendarDay)=ValorDeInicioDeSemana,CONCATENATE(\"Semana \",WEEKNUM(CalendarDay),\"/Día \",CalendarDay-DATE(YEAR(CalendarDay),1,0)),CONCATENATE(\"Día \",CalendarDay-DATE(YEAR(CalendarDay),1,0)))","v":"Día 152"},{"$f":"IF(WEEKDAY(CalendarDay)=ValorDeInicioDeSemana,CONCATENATE(\"Semana \",WEEKNUM(CalendarDay),\"/Día \",CalendarDay-DATE(YEAR(CalendarDay),1,0)),CONCATENATE(\"Día \",CalendarDay-DATE(YEAR(CalendarDay),1,0)))","v":"Día 153"}]
[{"$nulls":4},"NOTAS"]
[]
[null,null,{"$f":"DíasYSemanas+DATE(AñoNatural,5,1)-WEEKDAY(DATE(AñoNatural,5,1),(InicioDeSemana=\"LUN\")+1)+36","v":"2018-06-03"},"2018-06-04"]
[null,null,{"$f":"IF(WEEKDAY(CalendarDay)=ValorDeInicioDeSemana,CONCATENATE(\"Semana \",WEEKNUM(CalendarDay),\"/Día \",CalendarDay-DATE(YEAR(CalendarDay),1,0)),CONCATENATE(\"Día \",CalendarDay-DATE(YEAR(CalendarDay),1,0)))","v":"Semana 23/Día 154"},{"$f":"IF(WEEKDAY(CalendarDay)=ValorDeInicioDeSemana,CONCATENATE(\"Semana \",WEEKNUM(CalendarDay),\"/Día \",CalendarDay-DATE(YEAR(CalendarDay),1,0)),CONCATENATE(\"Día \",CalendarDay-DATE(YEAR(CalendarDay),1,0)))","v":"Día 155"}]

{"sheet":"JUN","index":5,"n_rows":20,"n_cols":9,"rows_kept":20,"merged":[[16,2,17,2],[17,4,19,8]]}
[null,"JUN",{"$f":"UPPER(TEXT(InicioDeSemana,\"ddd\"))","v":"DOM"},{"$f":"UPPER(TEXT(D3,\"ddd\"))","v":"LUN"},{"$f":"UPPER(TEXT(E3,\"ddd\"))","v":"MAR"},{"$f":"UPPER(TEXT(F3,\"ddd\"))","v":"MIÉ"},{"$f":"UPPER(TEXT(G3,\"ddd\"))","v":"JUE"},{"$f":"UPPER(TEXT(H3,\"ddd\"))","v":"VIE"},{"$f":"UPPER(TEXT(I3,\"ddd\"))","v":"SÁB"}]
[null,{"$f":"AñoNatural","v":2018}]
[null,null,{"$f":"DíasYSemanas+DATE(AñoNatural,6,1)-WEEKDAY(DATE(AñoNatural,6,1),(InicioDeSemana=\"LUN\")+1)+1","v":"2018-05-27"},"2018-05-28","2018-05-29","2018-05-30","2018-05-31","2018-06-01","2018-06-02"]
[null,null,{"$f":"IF(DAY(CalendarDay)=1,CONCATENATE(\"Semana \",WEEKNUM(CalendarDay),\"/Día \",CalendarDay-DATE(YEAR(CalendarDay),1,0)),CONCATENATE(\"Día \",CalendarDay-DATE(YEAR(CalendarDay),1,0)))","v":"Día 147"},{"$f":"IF(DAY(CalendarDay)=1,CONCATENATE(\"Semana \",WEEKNUM(CalendarDay),\"/Día \",CalendarDay-DATE(YEAR(CalendarDay),1,0)),CONCATENATE(\"Día \",CalendarDay-DATE(YEAR(CalendarDay),1,0)))","v":"Día 148"},{"$f":"IF(DAY(CalendarDay)=1,CONCATENATE(\"Semana \",WEEKNUM(CalendarDay),\"/Día \",CalendarDay-DATE(YEAR(CalendarDay),1,0)),CONCATENATE(\"Día \",CalendarDay-DATE(YEAR(CalendarDay),1,0)))","v":"Día 149"},{"$f":"IF(DAY(CalendarDay)=1,CONCATENATE(\"Semana \",WEEKNUM(CalendarDay),\"/Día \",CalendarDay-DATE(YEAR(CalendarDay),1,0)),CONCATENATE(\"Día \",CalendarDay-DATE(YEAR(CalendarDay),1,0)))","v":"Día 150"},{"$f":"IF(DAY(CalendarDay)=1,CONCATENATE(\"Semana \",WEEKNUM(CalendarDay),\"/Día \",CalendarDay-DATE(YEAR(CalendarDay),1,0)),CONCATENATE(\"Día \",CalendarDay-DATE(YEAR(CalendarDay),1,0)))","v":"Día 151"},{"$f":"IF(DAY(CalendarDay)=1,CONCATENATE(\"Semana \",WEEKNUM(CalendarDay),\"/Día \",CalendarDay-DATE(YEAR(CalendarDay),1,0)),CONCATENATE(\"Día \",CalendarDay-DATE(YEAR(CalendarDay),1,0)))","v":"Semana 22/Día 152"},{"$f":"IF(DAY(CalendarDay)=1,CONCATENATE(\"Semana \",WEEKNUM(CalendarDay),\"/Día \",CalendarDay-DATE(YEAR(CalendarDay),1,0)),CONCATENATE(\"Día \",CalendarDay-DATE(YEAR(CalendarDay),1,0)))","v":"Día 153"}]
[]
[null,null,{"$f":"DíasYSemanas+DATE(AñoNatural,6,1)-WEEKDAY(DATE(AñoNatural,6,1),(InicioDeSemana=\"LUN\")+1)+8","v":"2018-06-03"},"2018-06-04","2018-06-05","2018-06-06","2018-06-07","2018-06-08","2018-06-09"]
[null,null,{"$f":"IF(WEEKDAY(CalendarDay)=ValorDeInicioDeSemana,CONCATENATE(\"Semana \",WEEKNUM(CalendarDay),\"/Día \",CalendarDay-DATE(YEAR(CalendarDay),1,0)),CONCATENATE(\"Día \",CalendarDay-DATE(YEAR(CalendarDay),1,0)))","v":"Semana 23/Día 154"},{"$f":"IF(WEEKDAY(CalendarDay)=ValorDeInicioDeSemana,CONCATENATE(\"Semana \",WEEKNUM(CalendarDay),\"/Día \",CalendarDay-DATE(YEAR(CalendarDay),1,0)),CONCATENATE(\"Día \",CalendarDay-DATE(YEAR(CalendarDay),1,0)))","v":"Día 155"},{"$f":"IF(WEEKDAY(CalendarDay)=ValorDeInicioDeSemana,CONCATENATE(\"Semana \",WEEKNUM(CalendarDay),\"/Día \",CalendarDay-DATE(YEAR(CalendarDay),1,0)),CONCATENATE(\"Día \",CalendarDay-DATE(YEAR(CalendarDay),1,0)))","v":"Día 156"},{"$f":"IF(WEEKDAY(CalendarDay)=ValorDeInicioDeSemana,CONCATENATE(\"Semana \",WEEKNUM(CalendarDay),\"/Día \",CalendarDay-DATE(YEAR(CalendarDay),1,0)),CONCATENATE(\"Día \",CalendarDay-DATE(YEAR(CalendarDay),1,0)))","v":"Día 157"},{"$f":"IF(WEEKDAY(CalendarDay)=ValorDeInicioDeSemana,CONCATENATE(\"Semana \",WEEKNUM(CalendarDay),\"/Día \",CalendarDay-DATE(YEAR(CalendarDay),1,0)),CONCATENATE(\"Día \",CalendarDay-DATE(YEAR(CalendarDay),1,0)))","v":"Día 158"},{"$f":"IF(WEEKDAY(CalendarDay)=ValorDeInicioDeSemana,CONCATENATE(\"Semana \",WEEKNUM(CalendarDay),\"/Día \",CalendarDay-DATE(YEAR(CalendarDay),1,0)),CONCATENATE(\"Día \",CalendarDay-DATE(YEAR(CalendarDay),1,0)))","v":"Día 159"},{"$f":"IF(WEEKDAY(CalendarDay)=ValorDeInicioDeSemana,CONCATENATE(\"Semana \",WEEKNUM(CalendarDay),\"/Día \",CalendarDay-DATE(YEAR(CalendarDay),1,0)),CONCATENATE(\"Día \",CalendarDay-DATE(YEAR(CalendarDay),1,0)))","v":"Día 160"}]
[]
[null,null,{"$f":"DíasYSemanas+DATE(AñoNatural,6,1)-WEEKDAY(DATE(AñoNatural,6,1),(InicioDeSemana=\"LUN\")+1)+15","v":"2018-06-10"},"2018-06-11","2018-06-12","2018-06-13","2018-06-14","2018-06-15","2018-06-16"]
[null,null,{"$f":"IF(WEEKDAY(CalendarDay)=ValorDeInicioDeSemana,CONCATENATE(\"Semana \",WEEKNUM(CalendarDay),\"/Día \",CalendarDay-DATE(YEAR(CalendarDay),1,0)),CONCATENATE(\"Día \",CalendarDay-DATE(YEAR(CalendarDay),1,0)))","v":"Semana 24/Día 161"},{"$f":"IF(WEEKDAY(CalendarDay)=ValorDeInicioDeSemana,CONCATENATE(\"Semana \",WEEKNUM(CalendarDay),\"/Día \",CalendarDay-DATE(YEAR(CalendarDay),1,0)),CONCATENATE(\"Día \",CalendarDay-DATE(YEAR(CalendarDay),1,0)))","v":"Día 162"},{"$f":"IF(WEEKDAY(CalendarDay)=ValorDeInicioDeSemana,CONCATENATE(\"Semana \",WEEKNUM(CalendarDay),\"/Día \",CalendarDay-DATE(YEAR(CalendarDay),1,0)),CONCATENATE(\"Día \",CalendarDay-DATE(YEAR(CalendarDay),1,0)))","v":"Día 163"},{"$f":"IF(WEEKDAY(CalendarDay)=ValorDeInicioDeSemana,CONCATENATE(\"Semana \",WEEKNUM(CalendarDay),\"/Día \",CalendarDay-DATE(YEAR(CalendarDay),1,0)),CONCATENATE(\"Día \",CalendarDay-DATE(YEAR(CalendarDay),1,0)))","v":"Día 164"},{"$f":"IF(WEEKDAY(CalendarDay)=ValorDeInicioDeSemana,CONCATENATE(\"Semana \",WEEKNUM(CalendarDay),\"/Día \",CalendarDay-DATE(YEAR(CalendarDay),1,0)),CONCATENATE(\"Día \",CalendarDay-DATE(YEAR(CalendarDay),1,0)))","v":"Día 165"},{"$f":"IF(WEEKDAY(CalendarDay)=ValorDeInicioDeSemana,CONCATENATE(\"Semana \",WEEKNUM(CalendarDay),\"/Día \",CalendarDay-DATE(YEAR(CalendarDay),1,0)),CONCATENATE(\"Día \",CalendarDay-DATE(YEAR(CalendarDay),1,0)))","v":"Día 166"},{"$f":"IF(WEEKDAY(CalendarDay)=ValorDeInicioDeSemana,CONCATENATE(\"Semana \",WEEKNUM(CalendarDay),\"/Día \",CalendarDay-DATE(YEAR(CalendarDay),1,0)),CONCATENATE(\"Día \",CalendarDay-DATE(YEAR(CalendarDay),1,0)))","v":"Día 167"}]
[]
[null,null,{"$f":"DíasYSemanas+DATE(AñoNatural,6,1)-WEEKDAY(DATE(AñoNatural,6,1),(InicioDeSemana=\"LUN\")+1)+22","v":"2018-06-17"},"2018-06-18","2018-06-19","2018-06-20","2018-06-21","2018-06-22","2018-06-23"]
[null,null,{"$f":"IF(WEEKDAY(CalendarDay)=ValorDeInicioDeSemana,CONCATENATE(\"Semana \",WEEKNUM(CalendarDay),\"/Día \",CalendarDay-DATE(YEAR(CalendarDay),1,0)),CONCATENATE(\"Día \",CalendarDay-DATE(YEAR(CalendarDay),1,0)))","v":"Semana 25/Día 168"},{"$f":"IF(WEEKDAY(CalendarDay)=ValorDeInicioDeSemana,CONCATENATE(\"Semana \",WEEKNUM(CalendarDay),\"/Día \",CalendarDay-DATE(YEAR(CalendarDay),1,0)),CONCATENATE(\"Día \",CalendarDay-DATE(YEAR(CalendarDay),1,0)))","v":"Día 169"},{"$f":"IF(WEEKDAY(CalendarDay)=ValorDeInicioDeSemana,CONCATENATE(\"Semana \",WEEKNUM(CalendarDay),\"/Día \",CalendarDay-DATE(YEAR(CalendarDay),1,0)),CONCATENATE(\"Día \",CalendarDay-DATE(YEAR(CalendarDay),1,0)))","v":"Día 170"},{"$f":"IF(WEEKDAY(CalendarDay)=ValorDeInicioDeSemana,CONCATENATE(\"Semana \",WEEKNUM(CalendarDay),\"/Día \",CalendarDay-DATE(YEAR(CalendarDay),1,0)),CONCATENATE(\"Día \",CalendarDay-DATE(YEAR(CalendarDay),1,0)))","v":"Día 171"},{"$f":"IF(WEEKDAY(CalendarDay)=ValorDeInicioDeSemana,CONCATENATE(\"Semana \",WEEKNUM(CalendarDay),\"/Día \",CalendarDay-DATE(YEAR(CalendarDay),1,0)),CONCATENATE(\"Día \",CalendarDay-DATE(YEAR(CalendarDay),1,0)))","v":"Día 172"},{"$f":"IF(WEEKDAY(CalendarDay)=ValorDeInicioDeSemana,CONCATENATE(\"Semana \",WEEKNUM(CalendarDay),\"/Día \",CalendarDay-DATE(YEAR(CalendarDay),1,0)),CONCATENATE(\"Día \",CalendarDay-DATE(YEAR(CalendarDay),1,0)))","v":"Día 173"},{"$f":"IF(WEEKDAY(CalendarDay)=ValorDeInicioDeSemana,CONCATENATE(\"Semana \",WEEKNUM(CalendarDay),\"/Día \",CalendarDay-DATE(YEAR(CalendarDay),1,0)),CONCATENATE(\"Día \",CalendarDay-DATE(YEAR(CalendarDay),1,0)))","v":"Día 174"}]
[]
[null,null,{"$f":"DíasYSemanas+DATE(AñoNatural,6,1)-WEEKDAY(DATE(AñoNatural,6,1),(InicioDeSemana=\"LUN\")+1)+29","v":"2018-06-24"},"2018-06-25","2018-06-26","2018-06-27","2018-06-28","2018-06-29","2018-06-30"]
[null,null,{"$f":"IF(WEEKDAY(CalendarDay)=ValorDeInicioDeSemana,CONCATENATE(\"Semana \",WEEKNUM(CalendarDay),\"/Día \",CalendarDay-DATE(YEAR(CalendarDay),1,0)),CONCATENATE(\"Día \",CalendarDay-DATE(YEAR(CalendarDay),1,0)))","v":"Semana 26/Día 175"},{"$f":"IF(WEEKDAY(CalendarDay)=ValorDeInicioDeSemana,CONCATENATE(\"Semana \",WEEKNUM(CalendarDay),\"/Día \",CalendarDay-DATE(YEAR(CalendarDay),1,0)),CONCATENATE(\"Día \",CalendarDay-DATE(YEAR(CalendarDay),1,0)))","v":"Día 176"},{"$f":"IF(WEEKDAY(CalendarDay)=ValorDeInicioDeSemana,CONCATENATE(\"Semana \",WEEKNUM(CalendarDay),\"/Día \",CalendarDay-DATE(YEAR(CalendarDay),1,0)),CONCATENATE(\"Día \",CalendarDay-DATE(YEAR(CalendarDay),1,0)))","v":"Día 177"},{"$f":"IF(WEEKDAY(CalendarDay)=ValorDeInicioDeSemana,CONCATENATE(\"Semana \",WEEKNUM(CalendarDay),\"/Día \",CalendarDay-DATE(YEAR(CalendarDay),1,0)),CONCATENATE(\"Día \",CalendarDay-DATE(YEAR(CalendarDay),1,0)))","v":"Día 178"},{"$f":"IF(WEEKDAY(CalendarDay)=ValorDeInicioDeSemana,CONCATENATE(\"Semana \",WEEKNUM(CalendarDay),\"/Día \",CalendarDay-DATE(YEAR(CalendarDay),1,0)),CONCATENATE(\"Día \",CalendarDay-DATE(YEAR(CalendarDay),1,0)))","v":"Día 179"},{"$f":"IF(WEEKDAY(CalendarDay)=ValorDeInicioDeSemana,CONCATENATE(\"Semana \",WEEKNUM(CalendarDay),\"/Día \",CalendarDay-DATE(YEAR(CalendarDay),1,0)),CONCATENATE(\"Día \",CalendarDay-DATE(YEAR(CalendarDay),1,0)))","v":"Día 180"},{"$f":"IF(WEEKDAY(CalendarDay)=ValorDeInicioDeSemana,CONCATENATE(\"Semana \",WEEKNUM(CalendarDay),\"/Día \",CalendarDay-DATE(YEAR(CalendarDay),1,0)),CONCATENATE(\"Día \",CalendarDay-DATE(YEAR(CalendarDay),1,0)))","v":"Día 181"}]
[{"$nulls":4},"NOTAS"]
[]
[null,null,{"$f":"DíasYSemanas+DATE(AñoNatural,6,1)-WEEKDAY(DATE(AñoNatural,6,1),(InicioDeSemana=\"LUN\")+1)+36","v":"2018-07-01"},"2018-07-02"]
[null,null,{"$f":"IF(WEEKDAY(CalendarDay)=ValorDeInicioDeSemana,CONCATENATE(\"Semana \",WEEKNUM(CalendarDay),\"/Día \",CalendarDay-DATE(YEAR(CalendarDay),1,0)),CONCATENATE(\"Día \",CalendarDay-DATE(YEAR(CalendarDay),1,0)))","v":"Semana 27/Día 182"},{"$f":"IF(WEEKDAY(CalendarDay)=ValorDeInicioDeSemana,CONCATENATE(\"Semana \",WEEKNUM(CalendarDay),\"/Día \",CalendarDay-DATE(YEAR(CalendarDay),1,0)),CONCATENATE(\"Día \",CalendarDay-DATE(YEAR(CalendarDay),1,0)))","v":"Día 183"}]

{"sheet":"JUL","index":6,"n_rows":20,"n_cols":9,"rows_kept":20,"merged":[[16,2,17,2],[17,4,19,8]]}
[null,"JUL",{"$f":"UPPER(TEXT(InicioDeSemana,\"ddd\"))","v":"DOM"},{"$f":"UPPER(TEXT(D3,\"ddd\"))","v":"LUN"},{"$f":"UPPER(TEXT(E3,\"ddd\"))","v":"MAR"},{"$f":"UPPER(TEXT(F3,\"ddd\"))","v":"MIÉ"},{"$f":"UPPER(TEXT(G3,\"ddd\"))","v":"JUE"},{"$f":"UPPER(TEXT(H3,\"ddd\"))","v":"VIE"},{"$f":"UPPER(TEXT(I3,\"ddd\"))","v":"SÁB"}]
[null,{"$f":"AñoNatural","v":2018}]
[null,null,{"$f":"DíasYSemanas+DATE(AñoNatural,7,1)-WEEKDAY(DATE(AñoNatural,7,1),(InicioDeSemana=\"LUN\")+1)+1","v":"2018-07-01"},"2018-07-02","2018-07-03","2018-07-04","2018-07-05","2018-07-06","2018-07-07"]
[null,null,{"$f":"IF(DAY(CalendarDay)=1,CONCATENATE(\"Semana \",WEEKNUM(CalendarDay),\"/Día \",CalendarDay-DATE(YEAR(CalendarDay),1,0)),CONCATENATE(\"Día \",CalendarDay-DATE(YEAR(CalendarDay),1,0)))","v":"Semana 27/Día 182"},{"$f":"IF(DAY(CalendarDay)=1,CONCATENATE(\"Semana \",WEEKNUM(CalendarDay),\"/Día \",CalendarDay-DATE(YEAR(CalendarDay),1,0)),CONCATENATE(\"Día \",CalendarDay-DATE(YEAR(CalendarDay),1,0)))","v":"Día 183"},{"$f":"IF(DAY(CalendarDay)=1,CONCATENATE(\"Semana \",WEEKNUM(CalendarDay),\"/Día \",CalendarDay-DATE(YEAR(CalendarDay),1,0)),CONCATENATE(\"Día \",CalendarDay-DATE(YEAR(CalendarDay),1,0)))","v":"Día 184"},{"$f":"IF(DAY(CalendarDay)=1,CONCATENATE(\"Semana \",WEEKNUM(CalendarDay),\"/Día \",CalendarDay-DATE(YEAR(CalendarDay),1,0)),CONCATENATE(\"Día \",CalendarDay-DATE(YEAR(CalendarDay),1,0)))","v":"Día 185"},{"$f":"IF(DAY(CalendarDay)=1,CONCATENATE(\"Semana \",WEEKNUM(CalendarDay),\"/Día \",CalendarDay-DATE(YEAR(CalendarDay),1,0)),CONCATENATE(\"Día \",CalendarDay-DATE(YEAR(CalendarDay),1,0)))","v":"Día 186"},{"$f":"IF(DAY(CalendarDay)=1,CONCATENATE(\"Semana \",WEEKNUM(CalendarDay),\"/Día \",CalendarDay-DATE(YEAR(CalendarDay),1,0)),CONCATENATE(\"Día \",CalendarDay-DATE(YEAR(CalendarDay),1,0)))","v":"Día 187"},{"$f":"IF(DAY(CalendarDay)=1,CONCATENATE(\"Semana \",WEEKNUM(CalendarDay),\"/Día \",CalendarDay-DATE(YEAR(CalendarDay),1,0)),CONCATENATE(\"Día \",CalendarDay-DATE(YEAR(CalendarDay),1,0)))","v":"Día 188"}]
[]
[null,null,{"$f":"DíasYSemanas+DATE(AñoNatural,7,1)-WEEKDAY(DATE(AñoNatural,7,1),(InicioDeSemana=\"LUN\")+1)+8","v":"2018-07-08"},"2018-07-09","2018-07-10","2018-07-11","2018-07-12","2018-07-13","2018-07-14"]
[null,null,{"$f":"IF(WEEKDAY(CalendarDay)=ValorDeInicioDeSemana,CONCATENATE(\"Semana \",WEEKNUM(CalendarDay),\"/Día \",CalendarDay-DATE(YEAR(CalendarDay),1,0)),CONCATENATE(\"Día \",CalendarDay-DATE(YEAR(CalendarDay),1,0)))","v":"Semana 28/Día 189"},{"$f":"IF(WEEKDAY(CalendarDay)=ValorDeInicioDeSemana,CONCATENATE(\"Semana \",WEEKNUM(CalendarDay),\"/Día \",CalendarDay-DATE(YEAR(CalendarDay),1,0)),CONCATENATE(\"Día \",CalendarDay-DATE(YEAR(CalendarDay),1,0)))","v":"Día 190"},{"$f":"IF(WEEKDAY(CalendarDay)=ValorDeInicioDeSemana,CONCATENATE(\"Semana \",WEEKNUM(CalendarDay),\"/Día \",CalendarDay-DATE(YEAR(CalendarDay),1,0)),CONCATENATE(\"Día \",CalendarDay-DATE(YEAR(CalendarDay),1,0)))","v":"Día 191"},{"$f":"IF(WEEKDAY(CalendarDay)=ValorDeInicioDeSemana,CONCATENATE(\"Semana \",WEEKNUM(CalendarDay),\"/Día \",CalendarDay-DATE(YEAR(CalendarDay),1,0)),CONCATENATE(\"Día \",CalendarDay-DATE(YEAR(CalendarDay),1,0)))","v":"Día 192"},{"$f":"IF(WEEKDAY(CalendarDay)=ValorDeInicioDeSemana,CONCATENATE(\"Semana \",WEEKNUM(CalendarDay),\"/Día \",CalendarDay-DATE(YEAR(CalendarDay),1,0)),CONCATENATE(\"Día \",CalendarDay-DATE(YEAR(CalendarDay),1,0)))","v":"Día 193"},{"$f":"IF(WEEKDAY(CalendarDay)=ValorDeInicioDeSemana,CONCATENATE(\"Semana \",WEEKNUM(CalendarDay),\"/Día \",CalendarDay-DATE(YEAR(CalendarDay),1,0)),CONCATENATE(\"Día \",CalendarDay-DATE(YEAR(CalendarDay),1,0)))","v":"Día 194"},{"$f":"IF(WEEKDAY(CalendarDay)=ValorDeInicioDeSemana,CONCATENATE(\"Semana \",WEEKNUM(CalendarDay),\"/Día \",CalendarDay-DATE(YEAR(CalendarDay),1,0)),CONCATENATE(\"Día \",CalendarDay-DATE(YEAR(CalendarDay),1,0)))","v":"Día 195"}]
[]
[null,null,{"$f":"DíasYSemanas+DATE(AñoNatural,7,1)-WEEKDAY(DATE(AñoNatural,7,1),(InicioDeSemana=\"LUN\")+1)+15","v":"2018-07-15"},"2018-07-16","2018-07-17","2018-07-18","2018-07-19","2018-07-20","2018-07-21"]
[null,null,{"$f":"IF(WEEKDAY(CalendarDay)=ValorDeInicioDeSemana,CONCATENATE(\"Semana \",WEEKNUM(CalendarDay),\"/Día \",CalendarDay-DATE(YEAR(CalendarDay),1,0)),CONCATENATE(\"Día \",CalendarDay-DATE(YEAR(CalendarDay),1,0)))","v":"Semana 29/Día 196"},{"$f":"IF(WEEKDAY(CalendarDay)=ValorDeInicioDeSemana,CONCATENATE(\"Semana \",WEEKNUM(CalendarDay),\"/Día \",CalendarDay-DATE(YEAR(CalendarDay),1,0)),CONCATENATE(\"Día \",CalendarDay-DATE(YEAR(CalendarDay),1,0)))","v":"Día 197"},{"$f":"IF(WEEKDAY(CalendarDay)=ValorDeInicioDeSemana,CONCATENATE(\"Semana \",WEEKNUM(CalendarDay),\"/Día \",CalendarDay-DATE(YEAR(CalendarDay),1,0)),CONCATENATE(\"Día \",CalendarDay-DATE(YEAR(CalendarDay),1,0)))","v":"Día 198"},{"$f":"IF(WEEKDAY(CalendarDay)=ValorDeInicioDeSemana,CONCATENATE(\"Semana \",WEEKNUM(CalendarDay),\"/Día \",CalendarDay-DATE(YEAR(CalendarDay),1,0)),CONCATENATE(\"Día \",CalendarDay-DATE(YEAR(CalendarDay),1,0)))","v":"Día 199"},{"$f":"IF(WEEKDAY(CalendarDay)=ValorDeInicioDeSemana,CONCATENATE(\"Semana \",WEEKNUM(CalendarDay),\"/Día \",CalendarDay-DATE(YEAR(CalendarDay),1,0)),CONCATENATE(\"Día \",CalendarDay-DATE(YEAR(CalendarDay),1,0)))","v":"Día 200"},{"$f":"IF(WEEKDAY(CalendarDay)=ValorDeInicioDeSemana,CONCATENATE(\"Semana \",WEEKNUM(CalendarDay),\"/Día \",CalendarDay-DATE(YEAR(CalendarDay),1,0)),CONCATENATE(\"Día \",CalendarDay-DATE(YEAR(CalendarDay),1,0)))","v":"Día 201"},{"$f":"IF(WEEKDAY(CalendarDay)=ValorDeInicioDeSemana,CONCATENATE(\"Semana \",WEEKNUM(CalendarDay),\"/Día \",CalendarDay-DATE(YEAR(CalendarDay),1,0)),CONCATENATE(\"Día \",CalendarDay-DATE(YEAR(CalendarDay),1,0)))","v":"Día 202"}]
[]
[null,null,{"$f":"DíasYSemanas+DATE(AñoNatural,7,1)-WEEKDAY(DATE(AñoNatural,7,1),(InicioDeSemana=\"LUN\")+1)+22","v":"2018-07-22"},"2018-07-23","2018-07-24","2018-07-25","2018-07-26","2018-07-27","2018-07-28"]
[null,null,{"$f":"IF(WEEKDAY(CalendarDay)=ValorDeInicioDeSemana,CONCATENATE(\"Semana \",WEEKNUM(CalendarDay),\"/Día \",CalendarDay-DATE(YEAR(CalendarDay),1,0)),CONCATENATE(\"Día \",CalendarDay-DATE(YEAR(CalendarDay),1,0)))","v":"Semana 30/Día 203"},{"$f":"IF(WEEKDAY(CalendarDay)=ValorDeInicioDeSemana,CONCATENATE(\"Semana \",WEEKNUM(CalendarDay),\"/Día \",CalendarDay-DATE(YEAR(CalendarDay),1,0)),CONCATENATE(\"Día \",CalendarDay-DATE(YEAR(CalendarDay),1,0)))","v":"Día 204"},{"$f":"IF(WEEKDAY(CalendarDay)=ValorDeInicioDeSemana,CONCATENATE(\"Semana \",WEEKNUM(CalendarDay),\"/Día \",CalendarDay-DATE(YEAR(CalendarDay),1,0)),CONCATENATE(\"Día \",CalendarDay-DATE(YEAR(CalendarDay),1,0)))","v":"Día 205"},{"$f":"IF(WEEKDAY(CalendarDay)=ValorDeInicioDeSemana,CONCATENATE(\"Semana \",WEEKNUM(CalendarDay),\"/Día \",CalendarDay-DATE(YEAR(CalendarDay),1,0)),CONCATENATE(\"Día \",CalendarDay-DATE(YEAR(CalendarDay),1,0)))","v":"Día 206"},{"$f":"IF(WEEKDAY(CalendarDay)=ValorDeInicioDeSemana,CONCATENATE(\"Semana \",WEEKNUM(CalendarDay),\"/Día \",CalendarDay-DATE(YEAR(CalendarDay),1,0)),CONCATENATE(\"Día \",CalendarDay-DATE(YEAR(CalendarDay),1,0)))","v":"Día 207"},{"$f":"IF(WEEKDAY(CalendarDay)=ValorDeInicioDeSemana,CONCATENATE(\"Semana \",WEEKNUM(CalendarDay),\"/Día \",CalendarDay-DATE(YEAR(CalendarDay),1,0)),CONCATENATE(\"Día \",CalendarDay-DATE(YEAR(CalendarDay),1,0)))","v":"Día 208"},{"$f":"IF(WEEKDAY(CalendarDay)=ValorDeInicioDeSemana,CONCATENATE(\"Semana \",WEEKNUM(CalendarDay),\"/Día \",CalendarDay-DATE(YEAR(CalendarDay),1,0)),CONCATENATE(\"Día \",CalendarDay-DATE(YEAR(CalendarDay),1,0)))","v":"Día 209"}]
[]
[null,null,{"$f":"DíasYSemanas+DATE(AñoNatural,7,1)-WEEKDAY(DATE(AñoNatural,7,1),(InicioDeSemana=\"LUN\")+1)+29","v":"2018-07-29"},"2018-07-30","2018-07-31","2018-08-01","2018-08-02","2018-08-03","2018-08-04"]
[null,null,{"$f":"IF(WEEKDAY(CalendarDay)=ValorDeInicioDeSemana,CONCATENATE(\"Semana \",WEEKNUM(CalendarDay),\"/Día \",CalendarDay-DATE(YEAR(CalendarDay),1,0)),CONCATENATE(\"Día \",CalendarDay-DATE(YEAR(CalendarDay),1,0)))","v":"Semana 31/Día 210"},{"$f":"IF(WEEKDAY(CalendarDay)=ValorDeInicioDeSemana,CONCATENATE(\"Semana \",WEEKNUM(CalendarDay),\"/Día \",CalendarDay-DATE(YEAR(CalendarDay),1,0)),CONCATENATE(\"Día \",CalendarDay-DATE(YEAR(CalendarDay),1,0)))","v":"Día 211"},{"$f":"IF(WEEKDAY(CalendarDay)=ValorDeInicioDeSemana,CONCATENATE(\"Semana \",WEEKNUM(CalendarDay),\"/Día \",CalendarDay-DATE(YEAR(CalendarDay),1,0)),CONCATENATE(\"Día \",CalendarDay-DATE(YEAR(CalendarDay),1,0)))","v":"Día 212"},{"$f":"IF(WEEKDAY(CalendarDay)=ValorDeInicioDeSemana,CONCATENATE(\"Semana \",WEEKNUM(CalendarDay),\"/Día \",CalendarDay-DATE(YEAR(CalendarDay),1,0)),CONCATENATE(\"Día \",CalendarDay-DATE(YEAR(CalendarDay),1,0)))","v":"Día 213"},{"$f":"IF(WEEKDAY(CalendarDay)=ValorDeInicioDeSemana,CONCATENATE(\"Semana \",WEEKNUM(CalendarDay),\"/Día \",CalendarDay-DATE(YEAR(CalendarDay),1,0)),CONCATENATE(\"Día \",CalendarDay-DATE(YEAR(CalendarDay),1,0)))","v":"Día 214"},{"$f":"IF(WEEKDAY(CalendarDay)=ValorDeInicioDeSemana,CONCATENATE(\"Semana \",WEEKNUM(CalendarDay),\"/Día \",CalendarDay-DATE(YEAR(CalendarDay),1,0)),CONCATENATE(\"Día \",CalendarDay-DATE(YEAR(CalendarDay),1,0)))","v":"Día 215"},{"$f":"IF(WEEKDAY(CalendarDay)=ValorDeInicioDeSemana,CONCATENATE(\"Semana \",WEEKNUM(CalendarDay),\"/Día \",CalendarDay-DATE(YEAR(CalendarDay),1,0)),CONCATENATE(\"Día \",CalendarDay-DATE(YEAR(CalendarDay),1,0)))","v":"Día 216"}]
[{"$nulls":4},"NOTAS"]
[]
[null,null,{"$f":"DíasYSemanas+DATE(AñoNatural,7,1)-WEEKDAY(DATE(AñoNatural,7,1),(InicioDeSemana=\"LUN\")+1)+36","v":"2018-08-05"},"2018-08-06"]
[null,null,{"$f":"IF(WEEKDAY(CalendarDay)=ValorDeInicioDeSemana,CONCATENATE(\"Semana \",WEEKNUM(CalendarDay),\"/Día \",CalendarDay-DATE(YEAR(CalendarDay),1,0)),CONCATENATE(\"Día \",CalendarDay-DATE(YEAR(CalendarDay),1,0)))","v":"Semana 32/Día 217"},{"$f":"IF(WEEKDAY(CalendarDay)=ValorDeInicioDeSemana,CONCATENATE(\"Semana \",WEEKNUM(CalendarDay),\"/Día \",CalendarDay-DATE(YEAR(CalendarDay),1,0)),CONCATENATE(\"Día \",CalendarDay-DATE(YEAR(CalendarDay),1,0)))","v":"Día 218"}]

{"sheet":"AGO","index":7,"n_rows":20,"n_cols":9,"rows_kept":20,"merged":[[16,2,17,2],[17,4,19,8]]}
[null,"AGO",{"$f":"UPPER(TEXT(InicioDeSemana,\"ddd\"))","v":"DOM"},{"$f":"UPPER(TEXT(D3,\"ddd\"))","v":"LUN"},{"$f":"UPPER(TEXT(E3,\"ddd\"))","v":"MAR"},{"$f":"UPPER(TEXT(F3,\"ddd\"))","v":"MIÉ"},{"$f":"UPPER(TEXT(G3,\"ddd\"))","v":"JUE"},{"$f":"UPPER(TEXT(H3,\"ddd\"))","v":"VIE"},{"$f":"UPPER(TEXT(I3,\"ddd\"))","v":"SÁB"}]
[null,{"$f":"AñoNatural","v":2018}]
[null,null,{"$f":"DíasYSemanas+DATE(AñoNatural,8,1)-WEEKDAY(DATE(AñoNatural,8,1),(InicioDeSemana=\"LUN\")+1)+1","v":"2018-07-29"},"2018-07-30","2018-07-31","2018-08-01","2018-08-02","2018-08-03","2018-08-04"]
[null,null,{"$f":"IF(DAY(CalendarDay)=1,CONCATENATE(\"Semana \",WEEKNUM(CalendarDay),\"/Día \",CalendarDay-DATE(YEAR(CalendarDay),1,0)),CONCATENATE(\"Día \",CalendarDay-DATE(YEAR(CalendarDay),1,0)))","v":"Día 210"},{"$f":"IF(DAY(CalendarDay)=1,CONCATENATE(\"Semana \",WEEKNUM(CalendarDay),\"/Día \",CalendarDay-DATE(YEAR(CalendarDay),1,0)),CONCATENATE(\"Día \",CalendarDay-DATE(YEAR(CalendarDay),1,0)))","v":"Día 211"},{"$f":"IF(DAY(CalendarDay)=1,CONCATENATE(\"Semana \",WEEKNUM(CalendarDay),\"/Día \",CalendarDay-DATE(YEAR(CalendarDay),1,0)),CONCATENATE(\"Día \",CalendarDay-DATE(YEAR(CalendarDay),1,0)))","v":"Día 212"},{"$f":"IF(DAY(CalendarDay)=1,CONCATENATE(\"Semana \",WEEKNUM(CalendarDay),\"/Día \",CalendarDay-DATE(YEAR(CalendarDay),1,0)),CONCATENATE(\"Día \",CalendarDay-DATE(YEAR(CalendarDay),1,0)))","v":"Semana 31/Día 213"},{"$f":"IF(DAY(CalendarDay)=1,CONCATENATE(\"Semana \",WEEKNUM(CalendarDay),\"/Día \",CalendarDay-DATE(YEAR(CalendarDay),1,0)),CONCATENATE(\"Día \",CalendarDay-DATE(YEAR(CalendarDay),1,0)))","v":"Día 214"},{"$f":"IF(DAY(CalendarDay)=1,CONCATENATE(\"Semana \",WEEKNUM(CalendarDay),\"/Día \",CalendarDay-DATE(YEAR(CalendarDay),1,0)),CONCATENATE(\"Día \",CalendarDay-DATE(YEAR(CalendarDay),1,0)))","v":"Día 215"},{"$f":"IF(DAY(CalendarDay)=1,CONCATENATE(\"Semana \",WEEKNUM(CalendarDay),\"/Día \",CalendarDay-DATE(YEAR(CalendarDay),1,0)),CONCATENATE(\"Día \",CalendarDay-DATE(YEAR(CalendarDay),1,0)))","v":"Día 216"}]
[]
[null,null,{"$f":"DíasYSemanas+DATE(AñoNatural,8,1)-WEEKDAY(DATE(AñoNatural,8,1),(InicioDeSemana=\"LUN\")+1)+8","v":"2018-08-05"},"2018-08-06","2018-08-07","2018-08-08","2018-08-09","2018-08-10","2018-08-11"]
[null,null,{"$f":"IF(WEEKDAY(CalendarDay)=ValorDeInicioDeSemana,CONCATENATE(\"Semana \",WEEKNUM(CalendarDay),\"/Día \",CalendarDay-DATE(YEAR(CalendarDay),1,0)),CONCATENATE(\"Día \",CalendarDay-DATE(YEAR(CalendarDay),1,0)))","v":"Semana 32/Día 217"},{"$f":"IF(WEEKDAY(CalendarDay)=ValorDeInicioDeSemana,CONCATENATE(\"Semana \",WEEKNUM(CalendarDay),\"/Día \",CalendarDay-DATE(YEAR(CalendarDay),1,0)),CONCATENATE(\"Día \",CalendarDay-DATE(YEAR(CalendarDay),1,0)))","v":"Día 218"},{"$f":"IF(WEEKDAY(CalendarDay)=ValorDeInicioDeSemana,CONCATENATE(\"Semana \",WEEKNUM(CalendarDay),\"/Día \",CalendarDay-DATE(YEAR(CalendarDay),1,0)),CONCATENATE(\"Día \",CalendarDay-DATE(YEAR(CalendarDay),1,0)))","v":"Día 219"},{"$f":"IF(WEEKDAY(CalendarDay)=ValorDeInicioDeSemana,CONCATENATE(\"Semana \",WEEKNUM(CalendarDay),\"/Día \",CalendarDay-DATE(YEAR(CalendarDay),1,0)),CONCATENATE(\"Día \",CalendarDay-DATE(YEAR(CalendarDay),1,0)))","v":"Día 220"},{"$f":"IF(WEEKDAY(CalendarDay)=ValorDeInicioDeSemana,CONCATENATE(\"Semana \",WEEKNUM(CalendarDay),\"/Día \",CalendarDay-DATE(YEAR(CalendarDay),1,0)),CONCATENATE(\"Día \",CalendarDay-DATE(YEAR(CalendarDay),1,0)))","v":"Día 221"},{"$f":"IF(WEEKDAY(CalendarDay)=ValorDeInicioDeSemana,CONCATENATE(\"Semana \",WEEKNUM(CalendarDay),\"/Día \",CalendarDay-DATE(YEAR(CalendarDay),1,0)),CONCATENATE(\"Día \",CalendarDay-DATE(YEAR(CalendarDay),1,0)))","v":"Día 222"},{"$f":"IF(WEEKDAY(CalendarDay)=ValorDeInicioDeSemana,CONCATENATE(\"Semana \",WEEKNUM(CalendarDay),\"/Día \",CalendarDay-DATE(YEAR(CalendarDay),1,0)),CONCATENATE(\"Día \",CalendarDay-DATE(YEAR(CalendarDay),1,0)))","v":"Día 223"}]
[]
[null,null,{"$f":"DíasYSemanas+DATE(AñoNatural,8,1)-WEEKDAY(DATE(AñoNatural,8,1),(InicioDeSemana=\"LUN\")+1)+15","v":"2018-08-12"},"2018-08-13","2018-08-14","2018-08-15","2018-08-16","2018-08-17","2018-08-18"]
[null,null,{"$f":"IF(WEEKDAY(CalendarDay)=ValorDeInicioDeSemana,CONCATENATE(\"Semana \",WEEKNUM(CalendarDay),\"/Día \",CalendarDay-DATE(YEAR(CalendarDay),1,0)),CONCATENATE(\"Día \",CalendarDay-DATE(YEAR(CalendarDay),1,0)))","v":"Semana 33/Día 224"},{"$f":"IF(WEEKDAY(CalendarDay)=ValorDeInicioDeSemana,CONCATENATE(\"Semana \",WEEKNUM(CalendarDay),\"/Día \",CalendarDay-DATE(YEAR(CalendarDay),1,0)),CONCATENATE(\"Día \",CalendarDay-DATE(YEAR(CalendarDay),1,0)))","v":"Día 225"},{"$f":"IF(WEEKDAY(CalendarDay)=ValorDeInicioDeSemana,CONCATENATE(\"Semana \",WEEKNUM(CalendarDay),\"/Día \",CalendarDay-DATE(YEAR(CalendarDay),1,0)),CONCATENATE(\"Día \",CalendarDay-DATE(YEAR(CalendarDay),1,0)))","v":"Día 226"},{"$f":"IF(WEEKDAY(CalendarDay)=ValorDeInicioDeSemana,CONCATENATE(\"Semana \",WEEKNUM(CalendarDay),\"/Día \",CalendarDay-DATE(YEAR(CalendarDay),1,0)),CONCATENATE(\"Día \",CalendarDay-DATE(YEAR(CalendarDay),1,0)))","v":"Día 227"},{"$f":"IF(WEEKDAY(CalendarDay)=ValorDeInicioDeSemana,CONCATENATE(\"Semana \",WEEKNUM(CalendarDay),\"/Día \",CalendarDay-DATE(YEAR(CalendarDay),1,0)),CONCATENATE(\"Día \",CalendarDay-DATE(YEAR(CalendarDay),1,0)))","v":"Día 228"},{"$f":"IF(WEEKDAY(CalendarDay)=ValorDeInicioDeSemana,CONCATENATE(\"Semana \",WEEKNUM(CalendarDay),\"/Día \",CalendarDay-DATE(YEAR(CalendarDay),1,0)),CONCATENATE(\"Día \",CalendarDay-DATE(YEAR(CalendarDay),1,0)))","v":"Día 229"},{"$f":"IF(WEEKDAY(CalendarDay)=ValorDeInicioDeSemana,CONCATENATE(\"Semana \",WEEKNUM(CalendarDay),\"/Día \",CalendarDay-DATE(YEAR(CalendarDay),1,0)),CONCATENATE(\"Día \",CalendarDay-DATE(YEAR(CalendarDay),1,0)))","v":"Día 230"}]
[]
[null,null,{"$f":"DíasYSemanas+DATE(AñoNatural,8,1)-WEEKDAY(DATE(AñoNatural,8,1),(InicioDeSemana=\"LUN\")+1)+22","v":"2018-08-19"},"2018-08-20","2018-08-21","2018-08-22","2018-08-23","2018-08-24","2018-08-25"]
[null,null,{"$f":"IF(WEEKDAY(CalendarDay)=ValorDeInicioDeSemana,CONCATENATE(\"Semana \",WEEKNUM(CalendarDay),\"/Día \",CalendarDay-DATE(YEAR(CalendarDay),1,0)),CONCATENATE(\"Día \",CalendarDay-DATE(YEAR(CalendarDay),1,0)))","v":"Semana 34/Día 231"},{"$f":"IF(WEEKDAY(CalendarDay)=ValorDeInicioDeSemana,CONCATENATE(\"Semana \",WEEKNUM(CalendarDay),\"/Día \",CalendarDay-DATE(YEAR(CalendarDay),1,0)),CONCATENATE(\"Día \",CalendarDay-DATE(YEAR(CalendarDay),1,0)))","v":"Día 232"},{"$f":"IF(WEEKDAY(CalendarDay)=ValorDeInicioDeSemana,CONCATENATE(\"Semana \",WEEKNUM(CalendarDay),\"/Día \",CalendarDay-DATE(YEAR(CalendarDay),1,0)),CONCATENATE(\"Día \",CalendarDay-DATE(YEAR(CalendarDay),1,0)))","v":"Día 233"},{"$f":"IF(WEEKDAY(CalendarDay)=ValorDeInicioDeSemana,CONCATENATE(\"Semana \",WEEKNUM(CalendarDay),\"/Día \",CalendarDay-DATE(YEAR(CalendarDay),1,0)),CONCATENATE(\"Día \",CalendarDay-DATE(YEAR(CalendarDay),1,0)))","v":"Día 234"},{"$f":"IF(WEEKDAY(CalendarDay)=ValorDeInicioDeSemana,CONCATENATE(\"Semana \",WEEKNUM(CalendarDay),\"/Día \",CalendarDay-DATE(YEAR(CalendarDay),1,0)),CONCATENATE(\"Día \",CalendarDay-DATE(YEAR(CalendarDay),1,0)))","v":"Día 235"},{"$f":"IF(WEEKDAY(CalendarDay)=ValorDeInicioDeSemana,CONCATENATE(\"Semana \",WEEKNUM(CalendarDay),\"/Día \",CalendarDay-DATE(YEAR(CalendarDay),1,0)),CONCATENATE(\"Día \",CalendarDay-DATE(YEAR(CalendarDay),1,0)))","v":"Día 236"},{"$f":"IF(WEEKDAY(CalendarDay)=ValorDeInicioDeSemana,CONCATENATE(\"Semana \",WEEKNUM(CalendarDay),\"/Día \",CalendarDay-DATE(YEAR(CalendarDay),1,0)),CONCATENATE(\"Día \",CalendarDay-DATE(YEAR(CalendarDay),1,0)))","v":"Día 237"}]
[]
[null,null,{"$f":"DíasYSemanas+DATE(AñoNatural,8,1)-WEEKDAY(DATE(AñoNatural,8,1),(InicioDeSemana=\"LUN\")+1)+29","v":"2018-08-26"},"2018-08-27","2018-08-28","2018-08-29","2018-08-30","2018-08-31","2018-09-01"]
[null,null,{"$f":"IF(WEEKDAY(CalendarDay)=ValorDeInicioDeSemana,CONCATENATE(\"Semana \",WEEKNUM(CalendarDay),\"/Día \",CalendarDay-DATE(YEAR(CalendarDay),1,0)),CONCATENATE(\"Día \",CalendarDay-DATE(YEAR(CalendarDay),1,0)))","v":"Semana 35/Día 238"},{"$f":"IF(WEEKDAY(CalendarDay)=ValorDeInicioDeSemana,CONCATENATE(\"Semana \",WEEKNUM(CalendarDay),\"/Día \",CalendarDay-DATE(YEAR(CalendarDay),1,0)),CONCATENATE(\"Día \",CalendarDay-DATE(YEAR(CalendarDay),1,0)))","v":"Día 239"},{"$f":"IF(WEEKDAY(CalendarDay)=ValorDeInicioDeSemana,CONCATENATE(\"Semana \",WEEKNUM(CalendarDay),\"/Día \",CalendarDay-DATE(YEAR(CalendarDay),1,0)),CONCATENATE(\"Día \",CalendarDay-DATE(YEAR(CalendarDay),1,0)))","v":"Día 240"},{"$f":"IF(WEEKDAY(CalendarDay)=ValorDeInicioDeSemana,CONCATENATE(\"Semana \",WEEKNUM(CalendarDay),\"/Día \",CalendarDay-DATE(YEAR(CalendarDay),1,0)),CONCATENATE(\"Día \",CalendarDay-DATE(YEAR(CalendarDay),1,0)))","v":"Día 241"},{"$f":"IF(WEEKDAY(CalendarDay)=ValorDeInicioDeSemana,CONCATENATE(\"Semana \",WEEKNUM(CalendarDay),\"/Día \",CalendarDay-DATE(YEAR(CalendarDay),1,0)),CONCATENATE(\"Día \",CalendarDay-DATE(YEAR(CalendarDay),1,0)))","v":"Día 242"},{"$f":"IF(WEEKDAY(CalendarDay)=ValorDeInicioDeSemana,CONCATENATE(\"Semana \",WEEKNUM(CalendarDay),\"/Día \",CalendarDay-DATE(YEAR(CalendarDay),1,0)),CONCATENATE(\"Día \",CalendarDay-DATE(YEAR(CalendarDay),1,0)))","v":"Día 243"},{"$f":"IF(WEEKDAY(CalendarDay)=ValorDeInicioDeSemana,CONCATENATE(\"Semana \",WEEKNUM(CalendarDay),\"/Día \",CalendarDay-DATE(YEAR(CalendarDay),1,0)),CONCATENATE(\"Día \",CalendarDay-DATE(YEAR(CalendarDay),1,0)))","v":"Día 244"}]
[{"$nulls":4},"NOTAS"]
[]
[null,null,{"$f":"DíasYSemanas+DATE(AñoNatural,8,1)-WEEKDAY(DATE(AñoNatural,8,1),(InicioDeSemana=\"LUN\")+1)+36","v":"2018-09-02"},"2018-09-03"]
[null,null,{"$f":"IF(WEEKDAY(CalendarDay)=ValorDeInicioDeSemana,CONCATENATE(\"Semana \",WEEKNUM(CalendarDay),\"/Día \",CalendarDay-DATE(YEAR(CalendarDay),1,0)),CONCATENATE(\"Día \",CalendarDay-DATE(YEAR(CalendarDay),1,0)))","v":"Semana 36/Día 245"},{"$f":"IF(WEEKDAY(CalendarDay)=ValorDeInicioDeSemana,CONCATENATE(\"Semana \",WEEKNUM(CalendarDay),\"/Día \",CalendarDay-DATE(YEAR(CalendarDay),1,0)),CONCATENATE(\"Día \",CalendarDay-DATE(YEAR(CalendarDay),1,0)))","v":"Día 246"}]

{"sheet":"SEP","index":8,"n_rows":20,"n_cols":9,"rows_kept":20,"merged":[[16,2,17,2],[17,4,19,8]]}
[null,"SEP",{"$f":"UPPER(TEXT(InicioDeSemana,\"ddd\"))","v":"DOM"},{"$f":"UPPER(TEXT(D3,\"ddd\"))","v":"LUN"},{"$f":"UPPER(TEXT(E3,\"ddd\"))","v":"MAR"},{"$f":"UPPER(TEXT(F3,\"ddd\"))","v":"MIÉ"},{"$f":"UPPER(TEXT(G3,\"ddd\"))","v":"JUE"},{"$f":"UPPER(TEXT(H3,\"ddd\"))","v":"VIE"},{"$f":"UPPER(TEXT(I3,\"ddd\"))","v":"SÁB"}]
[null,{"$f":"AñoNatural","v":2018}]
[null,null,{"$f":"DíasYSemanas+DATE(AñoNatural,9,1)-WEEKDAY(DATE(AñoNatural,9,1),(InicioDeSemana=\"LUN\")+1)+1","v":"2018-08-26"},"2018-08-27","2018-08-28","2018-08-29","2018-08-30","2018-08-31","2018-09-01"]
[null,null,{"$f":"IF(DAY(CalendarDay)=1,CONCATENATE(\"Semana \",WEEKNUM(CalendarDay),\"/Día \",CalendarDay-DATE(YEAR(CalendarDay),1,0)),CONCATENATE(\"Día \",CalendarDay-DATE(YEAR(CalendarDay),1,0)))","v":"Día 238"},{"$f":"IF(DAY(CalendarDay)=1,CONCATENATE(\"Semana \",WEEKNUM(CalendarDay),\"/Día \",CalendarDay-DATE(YEAR(CalendarDay),1,0)),CONCATENATE(\"Día \",CalendarDay-DATE(YEAR(CalendarDay),1,0)))","v":"Día 239"},{"$f":"IF(DAY(CalendarDay)=1,CONCATENATE(\"Semana \",WEEKNUM(CalendarDay),\"/Día \",CalendarDay-DATE(YEAR(CalendarDay),1,0)),CONCATENATE(\"Día \",CalendarDay-DATE(YEAR(CalendarDay),1,0)))","v":"Día 240"},{"$f":"IF(DAY(CalendarDay)=1,CONCATENATE(\"Semana \",WEEKNUM(CalendarDay),\"/Día \",CalendarDay-DATE(YEAR(CalendarDay),1,0)),CONCATENATE(\"Día \",CalendarDay-DATE(YEAR(CalendarDay),1,0)))","v":"Día 241"},{"$f":"IF(DAY(CalendarDay)=1,CONCATENATE(\"Semana \",WEEKNUM(CalendarDay),\"/Día \",CalendarDay-DATE(YEAR(CalendarDay),1,0)),CONCATENATE(\"Día \",CalendarDay-DATE(YEAR(CalendarDay),1,0)))","v":"Día 242"},{"$f":"IF(DAY(CalendarDay)=1,CONCATENATE(\"Semana \",WEEKNUM(CalendarDay),\"/Día \",CalendarDay-DATE(YEAR(CalendarDay),1,0)),CONCATENATE(\"Día \",CalendarDay-DATE(YEAR(CalendarDay),1,0)))","v":"Día 243"},{"$f":"IF(DAY(CalendarDay)=1,CONCATENATE(\"Semana \",WEEKNUM(CalendarDay),\"/Día \",CalendarDay-DATE(YEAR(CalendarDay),1,0)),CONCATENATE(\"Día \",CalendarDay-DATE(YEAR(CalendarDay),1,0)))","v":"Semana 35/Día 244"}]
[]
[null,null,{"$f":"DíasYSemanas+DATE(AñoNatural,9,1)-WEEKDAY(DATE(AñoNatural,9,1),(InicioDeSemana=\"LUN\")+1)+8","v":"2018-09-02"},"2018-09-03","2018-09-04","2018-09-05","2018-09-06","2018-09-07","2018-09-08"]
[null,null,{"$f":"IF(WEEKDAY(CalendarDay)=ValorDeInicioDeSemana,CONCATENATE(\"Semana \",WEEKNUM(CalendarDay),\"/Día \",CalendarDay-DATE(YEAR(CalendarDay),1,0)),CONCATENATE(\"Día \",CalendarDay-DATE(YEAR(CalendarDay),1,0)))","v":"Semana 36/Día 245"},{"$f":"IF(WEEKDAY(CalendarDay)=ValorDeInicioDeSemana,CONCATENATE(\"Semana \",WEEKNUM(CalendarDay),\"/Día \",CalendarDay-DATE(YEAR(CalendarDay),1,0)),CONCATENATE(\"Día \",CalendarDay-DATE(YEAR(CalendarDay),1,0)))","v":"Día 246"},{"$f":"IF(WEEKDAY(CalendarDay)=ValorDeInicioDeSemana,CONCATENATE(\"Semana \",WEEKNUM(CalendarDay),\"/Día \",CalendarDay-DATE(YEAR(CalendarDay),1,0)),CONCATENATE(\"Día \",CalendarDay-DATE(YEAR(CalendarDay),1,0)))","v":"Día 247"},{"$f":"IF(WEEKDAY(CalendarDay)=ValorDeInicioDeSemana,CONCATENATE(\"Semana \",WEEKNUM(CalendarDay),\"/Día \",CalendarDay-DATE(YEAR(CalendarDay),1,0)),CONCATENATE(\"Día \",CalendarDay-DATE(YEAR(CalendarDay),1,0)))","v":"Día 248"},{"$f":"IF(WEEKDAY(CalendarDay)=ValorDeInicioDeSemana,CONCATENATE(\"Semana \",WEEKNUM(CalendarDay),\"/Día \",CalendarDay-DATE(YEAR(CalendarDay),1,0)),CONCATENATE(\"Día \",CalendarDay-DATE(YEAR(CalendarDay),1,0)))","v":"Día 249"},{"$f":"IF(WEEKDAY(CalendarDay)=ValorDeInicioDeSemana,CONCATENATE(\"Semana \",WEEKNUM(CalendarDay),\"/Día \",CalendarDay-DATE(YEAR(CalendarDay),1,0)),CONCATENATE(\"Día \",CalendarDay-DATE(YEAR(CalendarDay),1,0)))","v":"Día 250"},{"$f":"IF(WEEKDAY(CalendarDay)=ValorDeInicioDeSemana,CONCATENATE(\"Semana \",WEEKNUM(CalendarDay),\"/Día \",CalendarDay-DATE(YEAR(CalendarDay),1,0)),CONCATENATE(\"Día \",CalendarDay-DATE(YEAR(CalendarDay),1,0)))","v":"Día 251"}]
[]
[null,null,{"$f":"DíasYSemanas+DATE(AñoNatural,9,1)-WEEKDAY(DATE(AñoNatural,9,1),(InicioDeSemana=\"LUN\")+1)+15","v":"2018-09-09"},"2018-09-10","2018-09-11","2018-09-12","2018-09-13","2018-09-14","2018-09-15"]
[null,null,{"$f":"IF(WEEKDAY(CalendarDay)=ValorDeInicioDeSemana,CONCATENATE(\"Semana \",WEEKNUM(CalendarDay),\"/Día \",CalendarDay-DATE(YEAR(CalendarDay),1,0)),CONCATENATE(\"Día \",CalendarDay-DATE(YEAR(CalendarDay),1,0)))","v":"Semana 37/Día 252"},{"$f":"IF(WEEKDAY(CalendarDay)=ValorDeInicioDeSemana,CONCATENATE(\"Semana \",WEEKNUM(CalendarDay),\"/Día \",CalendarDay-DATE(YEAR(CalendarDay),1,0)),CONCATENATE(\"Día \",CalendarDay-DATE(YEAR(CalendarDay),1,0)))","v":"Día 253"},{"$f":"IF(WEEKDAY(CalendarDay)=ValorDeInicioDeSemana,CONCATENATE(\"Semana \",WEEKNUM(CalendarDay),\"/Día \",CalendarDay-DATE(YEAR(CalendarDay),1,0)),CONCATENATE(\"Día \",CalendarDay-DATE(YEAR(CalendarDay),1,0)))","v":"Día 254"},{"$f":"IF(WEEKDAY(CalendarDay)=ValorDeInicioDeSemana,CONCATENATE(\"Semana \",WEEKNUM(CalendarDay),\"/Día \",CalendarDay-DATE(YEAR(CalendarDay),1,0)),CONCATENATE(\"Día \",CalendarDay-DATE(YEAR(CalendarDay),1,0)))","v":"Día 255"},{"$f":"IF(WEEKDAY(CalendarDay)=ValorDeInicioDeSemana,CONCATENATE(\"Semana \",WEEKNUM(CalendarDay),\"/Día \",CalendarDay-DATE(YEAR(CalendarDay),1,0)),CONCATENATE(\"Día \",CalendarDay-DATE(YEAR(CalendarDay),1,0)))","v":"Día 256"},{"$f":"IF(WEEKDAY(CalendarDay)=ValorDeInicioDeSemana,CONCATENATE(\"Semana \",WEEKNUM(CalendarDay),\"/Día \",CalendarDay-DATE(YEAR(CalendarDay),1,0)),CONCATENATE(\"Día \",CalendarDay-DATE(YEAR(CalendarDay),1,0)))","v":"Día 257"},{"$f":"IF(WEEKDAY(CalendarDay)=ValorDeInicioDeSemana,CONCATENATE(\"Semana \",WEEKNUM(CalendarDay),\"/Día \",CalendarDay-DATE(YEAR(CalendarDay),1,0)),CONCATENATE(\"Día \",CalendarDay-DATE(YEAR(CalendarDay),1,0)))","v":"Día 258"}]
[]
[null,null,{"$f":"DíasYSemanas+DATE(AñoNatural,9,1)-WEEKDAY(DATE(AñoNatural,9,1),(InicioDeSemana=\"LUN\")+1)+22","v":"2018-09-16"},"2018-09-17","2018-09-18","2018-09-19","2018-09-20","2018-09-21","2018-09-22"]
[null,null,{"$f":"IF(WEEKDAY(CalendarDay)=ValorDeInicioDeSemana,CONCATENATE(\"Semana \",WEEKNUM(CalendarDay),\"/Día \",CalendarDay-DATE(YEAR(CalendarDay),1,0)),CONCATENATE(\"Día \",CalendarDay-DATE(YEAR(CalendarDay),1,0)))","v":"Semana 38/Día 259"},{"$f":"IF(WEEKDAY(CalendarDay)=ValorDeInicioDeSemana,CONCATENATE(\"Semana \",WEEKNUM(CalendarDay),\"/Día \",CalendarDay-DATE(YEAR(CalendarDay),1,0)),CONCATENATE(\"Día \",CalendarDay-DATE(YEAR(CalendarDay),1,0)))","v":"Día 260"},{"$f":"IF(WEEKDAY(CalendarDay)=ValorDeInicioDeSemana,CONCATENATE(\"Semana \",WEEKNUM(CalendarDay),\"/Día \",CalendarDay-DATE(YEAR(CalendarDay),1,0)),CONCATENATE(\"Día \",CalendarDay-DATE(YEAR(CalendarDay),1,0)))","v":"Día 261"},{"$f":"IF(WEEKDAY(CalendarDay)=ValorDeInicioDeSemana,CONCATENATE(\"Semana \",WEEKNUM(CalendarDay),\"/Día \",CalendarDay-DATE(YEAR(CalendarDay),1,0)),CONCATENATE(\"Día \",CalendarDay-DATE(YEAR(CalendarDay),1,0)))","v":"Día 262"},{"$f":"IF(WEEKDAY(CalendarDay)=ValorDeInicioDeSemana,CONCATENATE(\"Semana \",WEEKNUM(CalendarDay),\"/Día \",CalendarDay-DATE(YEAR(CalendarDay),1,0)),CONCATENATE(\"Día \",CalendarDay-DATE(YEAR(CalendarDay),1,0)))","v":"Día 263"},{"$f":"IF(WEEKDAY(CalendarDay)=ValorDeInicioDeSemana,CONCATENATE(\"Semana \",WEEKNUM(CalendarDay),\"/Día \",CalendarDay-DATE(YEAR(CalendarDay),1,0)),CONCATENATE(\"Día \",CalendarDay-DATE(YEAR(CalendarDay),1,0)))","v":"Día 264"},{"$f":"IF(WEEKDAY(CalendarDay)=ValorDeInicioDeSemana,CONCATENATE(\"Semana \",WEEKNUM(CalendarDay),\"/Día \",CalendarDay-DATE(YEAR(CalendarDay),1,0)),CONCATENATE(\"Día \",CalendarDay-DATE(YEAR(CalendarDay),1,0)))","v":"Día 265"}]
[]
[null,null,{"$f":"DíasYSemanas+DATE(AñoNatural,9,1)-WEEKDAY(DATE(AñoNatural,9,1),(InicioDeSemana=\"LUN\")+1)+29","v":"2018-09-23"},"2018-09-24","2018-09-25","2018-09-26","2018-09-27","2018-09-28","2018-09-29"]
[null,null,{"$f":"IF(WEEKDAY(CalendarDay)=ValorDeInicioDeSemana,CONCATENATE(\"Semana \",WEEKNUM(CalendarDay),\"/Día \",CalendarDay-DATE(YEAR(CalendarDay),1,0)),CONCATENATE(\"Día \",CalendarDay-DATE(YEAR(CalendarDay),1,0)))","v":"Semana 39/Día 266"},{"$f":"IF(WEEKDAY(CalendarDay)=ValorDeInicioDeSemana,CONCATENATE(\"Semana \",WEEKNUM(CalendarDay),\"/Día \",CalendarDay-DATE(YEAR(CalendarDay),1,0)),CONCATENATE(\"Día \",CalendarDay-DATE(YEAR(CalendarDay),1,0)))","v":"Día 267"},{"$f":"IF(WEEKDAY(CalendarDay)=ValorDeInicioDeSemana,CONCATENATE(\"Semana \",WEEKNUM(CalendarDay),\"/Día \",CalendarDay-DATE(YEAR(CalendarDay),1,0)),CONCATENATE(\"Día \",CalendarDay-DATE(YEAR(CalendarDay),1,0)))","v":"Día 268"},{"$f":"IF(WEEKDAY(CalendarDay)=ValorDeInicioDeSemana,CONCATENATE(\"Semana \",WEEKNUM(CalendarDay),\"/Día \",CalendarDay-DATE(YEAR(CalendarDay),1,0)),CONCATENATE(\"Día \",CalendarDay-DATE(YEAR(CalendarDay),1,0)))","v":"Día 269"},{"$f":"IF(WEEKDAY(CalendarDay)=ValorDeInicioDeSemana,CONCATENATE(\"Semana \",WEEKNUM(CalendarDay),\"/Día \",CalendarDay-DATE(YEAR(CalendarDay),1,0)),CONCATENATE(\"Día \",CalendarDay-DATE(YEAR(CalendarDay),1,0)))","v":"Día 270"},{"$f":"IF(WEEKDAY(CalendarDay)=ValorDeInicioDeSemana,CONCATENATE(\"Semana \",WEEKNUM(CalendarDay),\"/Día \",CalendarDay-DATE(YEAR(CalendarDay),1,0)),CONCATENATE(\"Día \",CalendarDay-DATE(YEAR(CalendarDay),1,0)))","v":"Día 271"},{"$f":"IF(WEEKDAY(CalendarDay)=ValorDeInicioDeSemana,CONCATENATE(\"Semana \",WEEKNUM(CalendarDay),\"/Día \",CalendarDay-DATE(YEAR(CalendarDay),1,0)),CONCATENATE(\"Día \",CalendarDay-DATE(YEAR(CalendarDay),1,0)))","v":"Día 272"}]
[{"$nulls":4},"NOTAS"]
[]
[null,null,{"$f":"DíasYSemanas+DATE(AñoNatural,9,1)-WEEKDAY(DATE(AñoNatural,9,1),(InicioDeSemana=\"LUN\")+1)+36","v":"2018-09-30"},"2018-10-01"]
[null,null,{"$f":"IF(WEEKDAY(CalendarDay)=ValorDeInicioDeSemana,CONCATENATE(\"Semana \",WEEKNUM(CalendarDay),\"/Día \",CalendarDay-DATE(YEAR(CalendarDay),1,0)),CONCATENATE(\"Día \",CalendarDay-DATE(YEAR(CalendarDay),1,0)))","v":"Semana 40/Día 273"},{"$f":"IF(WEEKDAY(CalendarDay)=ValorDeInicioDeSemana,CONCATENATE(\"Semana \",WEEKNUM(CalendarDay),\"/Día \",CalendarDay-DATE(YEAR(CalendarDay),1,0)),CONCATENATE(\"Día \",CalendarDay-DATE(YEAR(CalendarDay),1,0)))","v":"Día 274"}]

{"sheet":"OCT","index":9,"n_rows":20,"n_cols":9,"rows_kept":20,"merged":[[16,2,17,2],[17,4,19,8]]}
[null,"OCT",{"$f":"UPPER(TEXT(InicioDeSemana,\"ddd\"))","v":"DOM"},{"$f":"UPPER(TEXT(D3,\"ddd\"))","v":"LUN"},{"$f":"UPPER(TEXT(E3,\"ddd\"))","v":"MAR"},{"$f":"UPPER(TEXT(F3,\"ddd\"))","v":"MIÉ"},{"$f":"UPPER(TEXT(G3,\"ddd\"))","v":"JUE"},{"$f":"UPPER(TEXT(H3,\"ddd\"))","v":"VIE"},{"$f":"UPPER(TEXT(I3,\"ddd\"))","v":"SÁB"}]
[null,{"$f":"AñoNatural","v":2018}]
[null,null,{"$f":"DíasYSemanas+DATE(AñoNatural,10,1)-WEEKDAY(DATE(AñoNatural,10,1),(InicioDeSemana=\"LUN\")+1)+1","v":"2018-09-30"},"2018-10-01","2018-10-02","2018-10-03","2018-10-04","2018-10-05","2018-10-06"]
[null,null,{"$f":"IF(DAY(CalendarDay)=1,CONCATENATE(\"Semana \",WEEKNUM(CalendarDay),\"/Día \",CalendarDay-DATE(YEAR(CalendarDay),1,0)),CONCATENATE(\"Día \",CalendarDay-DATE(YEAR(CalendarDay),1,0)))","v":"Día 273"},{"$f":"IF(DAY(CalendarDay)=1,CONCATENATE(\"Semana \",WEEKNUM(CalendarDay),\"/Día \",CalendarDay-DATE(YEAR(CalendarDay),1,0)),CONCATENATE(\"Día \",CalendarDay-DATE(YEAR(CalendarDay),1,0)))","v":"Semana 40/Día 274"},{"$f":"IF(DAY(CalendarDay)=1,CONCATENATE(\"Semana \",WEEKNUM(CalendarDay),\"/Día \",CalendarDay-DATE(YEAR(CalendarDay),1,0)),CONCATENATE(\"Día \",CalendarDay-DATE(YEAR(CalendarDay),1,0)))","v":"Día 275"},{"$f":"IF(DAY(CalendarDay)=1,CONCATENATE(\"Semana \",WEEKNUM(CalendarDay),\"/Día \",CalendarDay-DATE(YEAR(CalendarDay),1,0)),CONCATENATE(\"Día \",CalendarDay-DATE(YEAR(CalendarDay),1,0)))","v":"Día 276"},{"$f":"IF(DAY(CalendarDay)=1,CONCATENATE(\"Semana \",WEEKNUM(CalendarDay),\"/Día \",CalendarDay-DATE(YEAR(CalendarDay),1,0)),CONCATENATE(\"Día \",CalendarDay-DATE(YEAR(CalendarDay),1,0)))","v":"Día 277"},{"$f":"IF(DAY(CalendarDay)=1,CONCATENATE(\"Semana \",WEEKNUM(CalendarDay),\"/Día \",CalendarDay-DATE(YEAR(CalendarDay),1,0)),CONCATENATE(\"Día \",CalendarDay-DATE(YEAR(CalendarDay),1,0)))","v":"Día 278"},{"$f":"IF(DAY(CalendarDay)=1,CONCATENATE(\"Semana \",WEEKNUM(CalendarDay),\"/Día \",CalendarDay-DATE(YEAR(CalendarDay),1,0)),CONCATENATE(\"Día \",CalendarDay-DATE(YEAR(CalendarDay),1,0)))","v":"Día 279"}]
[]
[null,null,{"$f":"DíasYSemanas+DATE(AñoNatural,10,1)-WEEKDAY(DATE(AñoNatural,10,1),(InicioDeSemana=\"LUN\")+1)+8","v":"2018-10-07"},"2018-10-08","2018-10-09","2018-10-10","2018-10-11","2018-10-12","2018-10-13"]
[null,null,{"$f":"IF(WEEKDAY(CalendarDay)=ValorDeInicioDeSemana,CONCATENATE(\"Semana \",WEEKNUM(CalendarDay),\"/Día \",CalendarDay-DATE(YEAR(CalendarDay),1,0)),CONCATENATE(\"Día \",CalendarDay-DATE(YEAR(CalendarDay),1,0)))","v":"Semana 41/Día 280"},{"$f":"IF(WEEKDAY(CalendarDay)=ValorDeInicioDeSemana,CONCATENATE(\"Semana \",WEEKNUM(CalendarDay),\"/Día \",CalendarDay-DATE(YEAR(CalendarDay),1,0)),CONCATENATE(\"Día \",CalendarDay-DATE(YEAR(CalendarDay),1,0)))","v":"Día 281"},{"$f":"IF(WEEKDAY(CalendarDay)=ValorDeInicioDeSemana,CONCATENATE(\"Semana \",WEEKNUM(CalendarDay),\"/Día \",CalendarDay-DATE(YEAR(CalendarDay),1,0)),CONCATENATE(\"Día \",CalendarDay-DATE(YEAR(CalendarDay),1,0)))","v":"Día 282"},{"$f":"IF(WEEKDAY(CalendarDay)=ValorDeInicioDeSemana,CONCATENATE(\"Semana \",WEEKNUM(CalendarDay),\"/Día \",CalendarDay-DATE(YEAR(CalendarDay),1,0)),CONCATENATE(\"Día \",CalendarDay-DATE(YEAR(CalendarDay),1,0)))","v":"Día 283"},{"$f":"IF(WEEKDAY(CalendarDay)=ValorDeInicioDeSemana,CONCATENATE(\"Semana \",WEEKNUM(CalendarDay),\"/Día \",CalendarDay-DATE(YEAR(CalendarDay),1,0)),CONCATENATE(\"Día \",CalendarDay-DATE(YEAR(CalendarDay),1,0)))","v":"Día 284"},{"$f":"IF(WEEKDAY(CalendarDay)=ValorDeInicioDeSemana,CONCATENATE(\"Semana \",WEEKNUM(CalendarDay),\"/Día \",CalendarDay-DATE(YEAR(CalendarDay),1,0)),CONCATENATE(\"Día \",CalendarDay-DATE(YEAR(CalendarDay),1,0)))","v":"Día 285"},{"$f":"IF(WEEKDAY(CalendarDay)=ValorDeInicioDeSemana,CONCATENATE(\"Semana \",WEEKNUM(CalendarDay),\"/Día \",CalendarDay-DATE(YEAR(CalendarDay),1,0)),CONCATENATE(\"Día \",CalendarDay-DATE(YEAR(CalendarDay),1,0)))","v":"Día 286"}]
[]
[null,null,{"$f":"DíasYSemanas+DATE(AñoNatural,10,1)-WEEKDAY(DATE(AñoNatural,10,1),(InicioDeSemana=\"LUN\")+1)+15","v":"2018-10-14"},"2018-10-15","2018-10-16","2018-10-17","2018-10-18","2018-10-19","2018-10-20"]
[null,null,{"$f":"IF(WEEKDAY(CalendarDay)=ValorDeInicioDeSemana,CONCATENATE(\"Semana \",WEEKNUM(CalendarDay),\"/Día \",CalendarDay-DATE(YEAR(CalendarDay),1,0)),CONCATENATE(\"Día \",CalendarDay-DATE(YEAR(CalendarDay),1,0)))","v":"Semana 42/Día 287"},{"$f":"IF(WEEKDAY(CalendarDay)=ValorDeInicioDeSemana,CONCATENATE(\"Semana \",WEEKNUM(CalendarDay),\"/Día \",CalendarDay-DATE(YEAR(CalendarDay),1,0)),CONCATENATE(\"Día \",CalendarDay-DATE(YEAR(CalendarDay),1,0)))","v":"Día 288"},{"$f":"IF(WEEKDAY(CalendarDay)=ValorDeInicioDeSemana,CONCATENATE(\"Semana \",WEEKNUM(CalendarDay),\"/Día \",CalendarDay-DATE(YEAR(CalendarDay),1,0)),CONCATENATE(\"Día \",CalendarDay-DATE(YEAR(CalendarDay),1,0)))","v":"Día 289"},{"$f":"IF(WEEKDAY(CalendarDay)=ValorDeInicioDeSemana,CONCATENATE(\"Semana \",WEEKNUM(CalendarDay),\"/Día \",CalendarDay-DATE(YEAR(CalendarDay),1,0)),CONCATENATE(\"Día \",CalendarDay-DATE(YEAR(CalendarDay),1,0)))","v":"Día 290"},{"$f":"IF(WEEKDAY(CalendarDay)=ValorDeInicioDeSemana,CONCATENATE(\"Semana \",WEEKNUM(CalendarDay),\"/Día \",CalendarDay-DATE(YEAR(CalendarDay),1,0)),CONCATENATE(\"Día \",CalendarDay-DATE(YEAR(CalendarDay),1,0)))","v":"Día 291"},{"$f":"IF(WEEKDAY(CalendarDay)=ValorDeInicioDeSemana,CONCATENATE(\"Semana \",WEEKNUM(CalendarDay),\"/Día \",CalendarDay-DATE(YEAR(CalendarDay),1,0)),CONCATENATE(\"Día \",CalendarDay-DATE(YEAR(CalendarDay),1,0)))","v":"Día 292"},{"$f":"IF(WEEKDAY(CalendarDay)=ValorDeInicioDeSemana,CONCATENATE(\"Semana \",WEEKNUM(CalendarDay),\"/Día \",CalendarDay-DATE(YEAR(CalendarDay),1,0)),CONCATENATE(\"Día \",CalendarDay-DATE(YEAR(CalendarDay),1,0)))","v":"Día 293"}]
[]
[null,null,{"$f":"DíasYSemanas+DATE(AñoNatural,10,1)-WEEKDAY(DATE(AñoNatural,10,1),(InicioDeSemana=\"LUN\")+1)+22","v":"2018-10-21"},"2018-10-22","2018-10-23","2018-10-24","2018-10-25","2018-10-26","2018-10-27"]
[null,null,{"$f":"IF(WEEKDAY(CalendarDay)=ValorDeInicioDeSemana,CONCATENATE(\"Semana \",WEEKNUM(CalendarDay),\"/Día \",CalendarDay-DATE(YEAR(CalendarDay),1,0)),CONCATENATE(\"Día \",CalendarDay-DATE(YEAR(CalendarDay),1,0)))","v":"Semana 43/Día 294"},{"$f":"IF(WEEKDAY(CalendarDay)=ValorDeInicioDeSemana,CONCATENATE(\"Semana \",WEEKNUM(CalendarDay),\"/Día \",CalendarDay-DATE(YEAR(CalendarDay),1,0)),CONCATENATE(\"Día \",CalendarDay-DATE(YEAR(CalendarDay),1,0)))","v":"Día 295"},{"$f":"IF(WEEKDAY(CalendarDay)=ValorDeInicioDeSemana,CONCATENATE(\"Semana \",WEEKNUM(CalendarDay),\"/Día \",CalendarDay-DATE(YEAR(CalendarDay),1,0)),CONCATENATE(\"Día \",CalendarDay-DATE(YEAR(CalendarDay),1,0)))","v":"Día 296"},{"$f":"IF(WEEKDAY(CalendarDay)=ValorDeInicioDeSemana,CONCATENATE(\"Semana \",WEEKNUM(CalendarDay),\"/Día \",CalendarDay-DATE(YEAR(CalendarDay),1,0)),CONCATENATE(\"Día \",CalendarDay-DATE(YEAR(CalendarDay),1,0)))","v":"Día 297"},{"$f":"IF(WEEKDAY(CalendarDay)=ValorDeInicioDeSemana,CONCATENATE(\"Semana \",WEEKNUM(CalendarDay),\"/Día \",CalendarDay-DATE(YEAR(CalendarDay),1,0)),CONCATENATE(\"Día \",CalendarDay-DATE(YEAR(CalendarDay),1,0)))","v":"Día 298"},{"$f":"IF(WEEKDAY(CalendarDay)=ValorDeInicioDeSemana,CONCATENATE(\"Semana \",WEEKNUM(CalendarDay),\"/Día \",CalendarDay-DATE(YEAR(CalendarDay),1,0)),CONCATENATE(\"Día \",CalendarDay-DATE(YEAR(CalendarDay),1,0)))","v":"Día 299"},{"$f":"IF(WEEKDAY(CalendarDay)=ValorDeInicioDeSemana,CONCATENATE(\"Semana \",WEEKNUM(CalendarDay),\"/Día \",CalendarDay-DATE(YEAR(CalendarDay),1,0)),CONCATENATE(\"Día \",CalendarDay-DATE(YEAR(CalendarDay),1,0)))","v":"Día 300"}]
[]
[null,null,{"$f":"DíasYSemanas+DATE(AñoNatural,10,1)-WEEKDAY(DATE(AñoNatural,10,1),(InicioDeSemana=\"LUN\")+1)+29","v":"2018-10-28"},"2018-10-29","2018-10-30","2018-10-31","2018-11-01","2018-11-02","2018-11-03"]
[null,null,{"$f":"IF(WEEKDAY(CalendarDay)=ValorDeInicioDeSemana,CONCATENATE(\"Semana \",WEEKNUM(CalendarDay),\"/Día \",CalendarDay-DATE(YEAR(CalendarDay),1,0)),CONCATENATE(\"Día \",CalendarDay-DATE(YEAR(CalendarDay),1,0)))","v":"Semana 44/Día 301"},{"$f":"IF(WEEKDAY(CalendarDay)=ValorDeInicioDeSemana,CONCATENATE(\"Semana \",WEEKNUM(CalendarDay),\"/Día \",CalendarDay-DATE(YEAR(CalendarDay),1,0)),CONCATENATE(\"Día \",CalendarDay-DATE(YEAR(CalendarDay),1,0)))","v":"Día 302"},{"$f":"IF(WEEKDAY(CalendarDay)=ValorDeInicioDeSemana,CONCATENATE(\"Semana \",WEEKNUM(CalendarDay),\"/Día \",CalendarDay-DATE(YEAR(CalendarDay),1,0)),CONCATENATE(\"Día \",CalendarDay-DATE(YEAR(CalendarDay),1,0)))","v":"Día 303"},{"$f":"IF(WEEKDAY(CalendarDay)=ValorDeInicioDeSemana,CONCATENATE(\"Semana \",WEEKNUM(CalendarDay),\"/Día \",CalendarDay-DATE(YEAR(CalendarDay),1,0)),CONCATENATE(\"Día \",CalendarDay-DATE(YEAR(CalendarDay),1,0)))","v":"Día 304"},{"$f":"IF(WEEKDAY(CalendarDay)=ValorDeInicioDeSemana,CONCATENATE(\"Semana \",WEEKNUM(CalendarDay),\"/Día \",CalendarDay-DATE(YEAR(CalendarDay),1,0)),CONCATENATE(\"Día \",CalendarDay-DATE(YEAR(CalendarDay),1,0)))","v":"Día 305"},{"$f":"IF(WEEKDAY(CalendarDay)=ValorDeInicioDeSemana,CONCATENATE(\"Semana \",WEEKNUM(CalendarDay),\"/Día \",CalendarDay-DATE(YEAR(CalendarDay),1,0)),CONCATENATE(\"Día \",CalendarDay-DATE(YEAR(CalendarDay),1,0)))","v":"Día 306"},{"$f":"IF(WEEKDAY(CalendarDay)=ValorDeInicioDeSemana,CONCATENATE(\"Semana \",WEEKNUM(CalendarDay),\"/Día \",CalendarDay-DATE(YEAR(CalendarDay),1,0)),CONCATENATE(\"Día \",CalendarDay-DATE(YEAR(CalendarDay),1,0)))","v":"Día 307"}]
[{"$nulls":4},"NOTAS"]
[]
[null,null,{"$f":"DíasYSemanas+DATE(AñoNatural,10,1)-WEEKDAY(DATE(AñoNatural,10,1),(InicioDeSemana=\"LUN\")+1)+36","v":"2018-11-04"},"2018-11-05"]
[null,null,{"$f":"IF(WEEKDAY(CalendarDay)=ValorDeInicioDeSemana,CONCATENATE(\"Semana \",WEEKNUM(CalendarDay),\"/Día \",CalendarDay-DATE(YEAR(CalendarDay),1,0)),CONCATENATE(\"Día \",CalendarDay-DATE(YEAR(CalendarDay),1,0)))","v":"Semana 45/Día 308"},{"$f":"IF(WEEKDAY(CalendarDay)=ValorDeInicioDeSemana,CONCATENATE(\"Semana \",WEEKNUM(CalendarDay),\"/Día \",CalendarDay-DATE(YEAR(CalendarDay),1,0)),CONCATENATE(\"Día \",CalendarDay-DATE(YEAR(CalendarDay),1,0)))","v":"Día 309"}]

{"sheet":"NOV","index":10,"n_rows":20,"n_cols":9,"rows_kept":20,"merged":[[16,2,17,2],[17,4,19,8]]}
[null,"NOV",{"$f":"UPPER(TEXT(InicioDeSemana,\"ddd\"))","v":"DOM"},{"$f":"UPPER(TEXT(D3,\"ddd\"))","v":"LUN"},{"$f":"UPPER(TEXT(E3,\"ddd\"))","v":"MAR"},{"$f":"UPPER(TEXT(F3,\"ddd\"))","v":"MIÉ"},{"$f":"UPPER(TEXT(G3,\"ddd\"))","v":"JUE"},{"$f":"UPPER(TEXT(H3,\"ddd\"))","v":"VIE"},{"$f":"UPPER(TEXT(I3,\"ddd\"))","v":"SÁB"}]
[null,{"$f":"AñoNatural","v":2018}]
[null,null,{"$f":"DíasYSemanas+DATE(AñoNatural,11,1)-WEEKDAY(DATE(AñoNatural,11,1),(InicioDeSemana=\"LUN\")+1)+1","v":"2018-10-28"},"2018-10-29","2018-10-30","2018-10-31","2018-11-01","2018-11-02","2018-11-03"]
[null,null,{"$f":"IF(DAY(CalendarDay)=1,CONCATENATE(\"Semana \",WEEKNUM(CalendarDay),\"/Día \",CalendarDay-DATE(YEAR(CalendarDay),1,0)),CONCATENATE(\"Día \",CalendarDay-DATE(YEAR(CalendarDay),1,0)))","v":"Día 301"},{"$f":"IF(DAY(CalendarDay)=1,CONCATENATE(\"Semana \",WEEKNUM(CalendarDay),\"/Día \",CalendarDay-DATE(YEAR(CalendarDay),1,0)),CONCATENATE(\"Día \",CalendarDay-DATE(YEAR(CalendarDay),1,0)))","v":"Día 302"},{"$f":"IF(DAY(CalendarDay)=1,CONCATENATE(\"Semana \",WEEKNUM(CalendarDay),\"/Día \",CalendarDay-DATE(YEAR(CalendarDay),1,0)),CONCATENATE(\"Día \",CalendarDay-DATE(YEAR(CalendarDay),1,0)))","v":"Día 303"},{"$f":"IF(DAY(CalendarDay)=1,CONCATENATE(\"Semana \",WEEKNUM(CalendarDay),\"/Día \",CalendarDay-DATE(YEAR(CalendarDay),1,0)),CONCATENATE(\"Día \",CalendarDay-DATE(YEAR(CalendarDay),1,0)))","v":"Día 304"},{"$f":"IF(DAY(CalendarDay)=1,CONCATENATE(\"Semana \",WEEKNUM(CalendarDay),\"/Día \",CalendarDay-DATE(YEAR(CalendarDay),1,0)),CONCATENATE(\"Día \",CalendarDay-DATE(YEAR(CalendarDay),1,0)))","v":"Semana 44/Día 305"},{"$f":"IF(DAY(CalendarDay)=1,CONCATENATE(\"Semana \",WEEKNUM(CalendarDay),\"/Día \",CalendarDay-DATE(YEAR(CalendarDay),1,0)),CONCATENATE(\"Día \",CalendarDay-DATE(YEAR(CalendarDay),1,0)))","v":"Día 306"},{"$f":"IF(DAY(CalendarDay)=1,CONCATENATE(\"Semana \",WEEKNUM(CalendarDay),\"/Día \",CalendarDay-DATE(YEAR(CalendarDay),1,0)),CONCATENATE(\"Día \",CalendarDay-DATE(YEAR(CalendarDay),1,0)))","v":"Día 307"}]
[]
[null,null,{"$f":"DíasYSemanas+DATE(AñoNatural,11,1)-WEEKDAY(DATE(AñoNatural,11,1),(InicioDeSemana=\"LUN\")+1)+8","v":"2018-11-04"},"2018-11-05","2018-11-06","2018-11-07","2018-11-08","2018-11-09","2018-11-10"]
[null,null,{"$f":"IF(WEEKDAY(CalendarDay)=ValorDeInicioDeSemana,CONCATENATE(\"Semana \",WEEKNUM(CalendarDay),\"/Día \",CalendarDay-DATE(YEAR(CalendarDay),1,0)),CONCATENATE(\"Día \",CalendarDay-DATE(YEAR(CalendarDay),1,0)))","v":"Semana 45/Día 308"},{"$f":"IF(WEEKDAY(CalendarDay)=ValorDeInicioDeSemana,CONCATENATE(\"Semana \",WEEKNUM(CalendarDay),\"/Día \",CalendarDay-DATE(YEAR(CalendarDay),1,0)),CONCATENATE(\"Día \",CalendarDay-DATE(YEAR(CalendarDay),1,0)))","v":"Día 309"},{"$f":"IF(WEEKDAY(CalendarDay)=ValorDeInicioDeSemana,CONCATENATE(\"Semana \",WEEKNUM(CalendarDay),\"/Día \",CalendarDay-DATE(YEAR(CalendarDay),1,0)),CONCATENATE(\"Día \",CalendarDay-DATE(YEAR(CalendarDay),1,0)))","v":"Día 310"},{"$f":"IF(WEEKDAY(CalendarDay)=ValorDeInicioDeSemana,CONCATENATE(\"Semana \",WEEKNUM(CalendarDay),\"/Día \",CalendarDay-DATE(YEAR(CalendarDay),1,0)),CONCATENATE(\"Día \",CalendarDay-DATE(YEAR(CalendarDay),1,0)))","v":"Día 311"},{"$f":"IF(WEEKDAY(CalendarDay)=ValorDeInicioDeSemana,CONCATENATE(\"Semana \",WEEKNUM(CalendarDay),\"/Día \",CalendarDay-DATE(YEAR(CalendarDay),1,0)),CONCATENATE(\"Día \",CalendarDay-DATE(YEAR(CalendarDay),1,0)))","v":"Día 312"},{"$f":"IF(WEEKDAY(CalendarDay)=ValorDeInicioDeSemana,CONCATENATE(\"Semana \",WEEKNUM(CalendarDay),\"/Día \",CalendarDay-DATE(YEAR(CalendarDay),1,0)),CONCATENATE(\"Día \",CalendarDay-DATE(YEAR(CalendarDay),1,0)))","v":"Día 313"},{"$f":"IF(WEEKDAY(CalendarDay)=ValorDeInicioDeSemana,CONCATENATE(\"Semana \",WEEKNUM(CalendarDay),\"/Día \",CalendarDay-DATE(YEAR(CalendarDay),1,0)),CONCATENATE(\"Día \",CalendarDay-DATE(YEAR(CalendarDay),1,0)))","v":"Día 314"}]
[]
[null,null,{"$f":"DíasYSemanas+DATE(AñoNatural,11,1)-WEEKDAY(DATE(AñoNatural,11,1),(InicioDeSemana=\"LUN\")+1)+15","v":"2018-11-11"},"2018-11-12","2018-11-13","2018-11-14","2018-11-15","2018-11-16","2018-11-17"]
[null,null,{"$f":"IF(WEEKDAY(CalendarDay)=ValorDeInicioDeSemana,CONCATENATE(\"Semana \",WEEKNUM(CalendarDay),\"/Día \",CalendarDay-DATE(YEAR(CalendarDay),1,0)),CONCATENATE(\"Día \",CalendarDay-DATE(YEAR(CalendarDay),1,0)))","v":"Semana 46/Día 315"},{"$f":"IF(WEEKDAY(CalendarDay)=ValorDeInicioDeSemana,CONCATENATE(\"Semana \",WEEKNUM(CalendarDay),\"/Día \",CalendarDay-DATE(YEAR(CalendarDay),1,0)),CONCATENATE(\"Día \",CalendarDay-DATE(YEAR(CalendarDay),1,0)))","v":"Día 316"},{"$f":"IF(WEEKDAY(CalendarDay)=ValorDeInicioDeSemana,CONCATENATE(\"Semana \",WEEKNUM(CalendarDay),\"/Día \",CalendarDay-DATE(YEAR(CalendarDay),1,0)),CONCATENATE(\"Día \",CalendarDay-DATE(YEAR(CalendarDay),1,0)))","v":"Día 317"},{"$f":"IF(WEEKDAY(CalendarDay)=ValorDeInicioDeSemana,CONCATENATE(\"Semana \",WEEKNUM(CalendarDay),\"/Día \",CalendarDay-DATE(YEAR(CalendarDay),1,0)),CONCATENATE(\"Día \",CalendarDay-DATE(YEAR(CalendarDay),1,0)))","v":"Día 318"},{"$f":"IF(WEEKDAY(CalendarDay)=ValorDeInicioDeSemana,CONCATENATE(\"Semana \",WEEKNUM(CalendarDay),\"/Día \",CalendarDay-DATE(YEAR(CalendarDay),1,0)),CONCATENATE(\"Día \",CalendarDay-DATE(YEAR(CalendarDay),1,0)))","v":"Día 319"},{"$f":"IF(WEEKDAY(CalendarDay)=ValorDeInicioDeSemana,CONCATENATE(\"Semana \",WEEKNUM(CalendarDay),\"/Día \",CalendarDay-DATE(YEAR(CalendarDay),1,0)),CONCATENATE(\"Día \",CalendarDay-DATE(YEAR(CalendarDay),1,0)))","v":"Día 320"},{"$f":"IF(WEEKDAY(CalendarDay)=ValorDeInicioDeSemana,CONCATENATE(\"Semana \",WEEKNUM(CalendarDay),\"/Día \",CalendarDay-DATE(YEAR(CalendarDay),1,0)),CONCATENATE(\"Día \",CalendarDay-DATE(YEAR(CalendarDay),1,0)))","v":"Día 321"}]
[]
[null,null,{"$f":"DíasYSemanas+DATE(AñoNatural,11,1)-WEEKDAY(DATE(AñoNatural,11,1),(InicioDeSemana=\"LUN\")+1)+22","v":"2018-11-18"},"2018-11-19","2018-11-20","2018-11-21","2018-11-22","2018-11-23","2018-11-24"]
[null,null,{"$f":"IF(WEEKDAY(CalendarDay)=ValorDeInicioDeSemana,CONCATENATE(\"Semana \",WEEKNUM(CalendarDay),\"/Día \",CalendarDay-DATE(YEAR(CalendarDay),1,0)),CONCATENATE(\"Día \",CalendarDay-DATE(YEAR(CalendarDay),1,0)))","v":"Semana 47/Día 322"},{"$f":"IF(WEEKDAY(CalendarDay)=ValorDeInicioDeSemana,CONCATENATE(\"Semana \",WEEKNUM(CalendarDay),\"/Día \",CalendarDay-DATE(YEAR(CalendarDay),1,0)),CONCATENATE(\"Día \",CalendarDay-DATE(YEAR(CalendarDay),1,0)))","v":"Día 323"},{"$f":"IF(WEEKDAY(CalendarDay)=ValorDeInicioDeSemana,CONCATENATE(\"Semana \",WEEKNUM(CalendarDay),\"/Día \",CalendarDay-DATE(YEAR(CalendarDay),1,0)),CONCATENATE(\"Día \",CalendarDay-DATE(YEAR(CalendarDay),1,0)))","v":"Día 324"},{"$f":"IF(WEEKDAY(CalendarDay)=ValorDeInicioDeSemana,CONCATENATE(\"Semana \",WEEKNUM(CalendarDay),\"/Día \",CalendarDay-DATE(YEAR(CalendarDay),1,0)),CONCATENATE(\"Día \",CalendarDay-DATE(YEAR(CalendarDay),1,0)))","v":"Día 325"},{"$f":"IF(WEEKDAY(CalendarDay)=ValorDeInicioDeSemana,CONCATENATE(\"Semana \",WEEKNUM(CalendarDay),\"/Día \",CalendarDay-DATE(YEAR(CalendarDay),1,0)),CONCATENATE(\"Día \",CalendarDay-DATE(YEAR(CalendarDay),1,0)))","v":"Día 326"},{"$f":"IF(WEEKDAY(CalendarDay)=ValorDeInicioDeSemana,CONCATENATE(\"Semana \",WEEKNUM(CalendarDay),\"/Día \",CalendarDay-DATE(YEAR(CalendarDay),1,0)),CONCATENATE(\"Día \",CalendarDay-DATE(YEAR(CalendarDay),1,0)))","v":"Día 327"},{"$f":"IF(WEEKDAY(CalendarDay)=ValorDeInicioDeSemana,CONCATENATE(\"Semana \",WEEKNUM(CalendarDay),\"/Día \",CalendarDay-DATE(YEAR(CalendarDay),1,0)),CONCATENATE(\"Día \",CalendarDay-DATE(YEAR(CalendarDay),1,0)))","v":"Día 328"}]
[]
[null,null,{"$f":"DíasYSemanas+DATE(AñoNatural,11,1)-WEEKDAY(DATE(AñoNatural,11,1),(InicioDeSemana=\"LUN\")+1)+29","v":"2018-11-25"},"2018-11-26","2018-11-27","2018-11-28","2018-11-29","2018-11-30","2018-12-01"]
[null,null,{"$f":"IF(WEEKDAY(CalendarDay)=ValorDeInicioDeSemana,CONCATENATE(\"Semana \",WEEKNUM(CalendarDay),\"/Día \",CalendarDay-DATE(YEAR(CalendarDay),1,0)),CONCATENATE(\"Día \",CalendarDay-DATE(YEAR(CalendarDay),1,0)))","v":"Semana 48/Día 329"},{"$f":"IF(WEEKDAY(CalendarDay)=ValorDeInicioDeSemana,CONCATENATE(\"Semana \",WEEKNUM(CalendarDay),\"/Día \",CalendarDay-DATE(YEAR(CalendarDay),1,0)),CONCATENATE(\"Día \",CalendarDay-DATE(YEAR(CalendarDay),1,0)))","v":"Día 330"},{"$f":"IF(WEEKDAY(CalendarDay)=ValorDeInicioDeSemana,CONCATENATE(\"Semana \",WEEKNUM(CalendarDay),\"/Día \",CalendarDay-DATE(YEAR(CalendarDay),1,0)),CONCATENATE(\"Día \",CalendarDay-DATE(YEAR(CalendarDay),1,0)))","v":"Día 331"},{"$f":"IF(WEEKDAY(CalendarDay)=ValorDeInicioDeSemana,CONCATENATE(\"Semana \",WEEKNUM(CalendarDay),\"/Día \",CalendarDay-DATE(YEAR(CalendarDay),1,0)),CONCATENATE(\"Día \",CalendarDay-DATE(YEAR(CalendarDay),1,0)))","v":"Día 332"},{"$f":"IF(WEEKDAY(CalendarDay)=ValorDeInicioDeSemana,CONCATENATE(\"Semana \",WEEKNUM(CalendarDay),\"/Día \",CalendarDay-DATE(YEAR(CalendarDay),1,0)),CONCATENATE(\"Día \",CalendarDay-DATE(YEAR(CalendarDay),1,0)))","v":"Día 333"},{"$f":"IF(WEEKDAY(CalendarDay)=ValorDeInicioDeSemana,CONCATENATE(\"Semana \",WEEKNUM(CalendarDay),\"/Día \",CalendarDay-DATE(YEAR(CalendarDay),1,0)),CONCATENATE(\"Día \",CalendarDay-DATE(YEAR(CalendarDay),1,0)))","v":"Día 334"},{"$f":"IF(WEEKDAY(CalendarDay)=ValorDeInicioDeSemana,CONCATENATE(\"Semana \",WEEKNUM(CalendarDay),\"/Día \",CalendarDay-DATE(YEAR(CalendarDay),1,0)),CONCATENATE(\"Día \",CalendarDay-DATE(YEAR(CalendarDay),1,0)))","v":"Día 335"}]
[{"$nulls":4},"NOTAS"]
[]
[null,null,{"$f":"DíasYSemanas+DATE(AñoNatural,11,1)-WEEKDAY(DATE(AñoNatural,11,1),(InicioDeSemana=\"LUN\")+1)+36","v":"2018-12-02"},"2018-12-03"]
[null,null,{"$f":"IF(WEEKDAY(CalendarDay)=ValorDeInicioDeSemana,CONCATENATE(\"Semana \",WEEKNUM(CalendarDay),\"/Día \",CalendarDay-DATE(YEAR(CalendarDay),1,0)),CONCATENATE(\"Día \",CalendarDay-DATE(YEAR(CalendarDay),1,0)))","v":"Semana 49/Día 336"},{"$f":"IF(WEEKDAY(CalendarDay)=ValorDeInicioDeSemana,CONCATENATE(\"Semana \",WEEKNUM(CalendarDay),\"/Día \",CalendarDay-DATE(YEAR(CalendarDay),1,0)),CONCATENATE(\"Día \",CalendarDay-DATE(YEAR(CalendarDay),1,0)))","v":"Día 337"}]

{"sheet":"DIC","index":11,"n_rows":20,"n_cols":9,"rows_kept":20,"merged":[[16,2,17,2],[17,4,19,8]]}
[null,"DIC",{"$f":"UPPER(TEXT(InicioDeSemana,\"ddd\"))","v":"DOM"},{"$f":"UPPER(TEXT(D3,\"ddd\"))","v":"LUN"},{"$f":"UPPER(TEXT(E3,\"ddd\"))","v":"MAR"},{"$f":"UPPER(TEXT(F3,\"ddd\"))","v":"MIÉ"},{"$f":"UPPER(TEXT(G3,\"ddd\"))","v":"JUE"},{"$f":"UPPER(TEXT(H3,\"ddd\"))","v":"VIE"},{"$f":"UPPER(TEXT(I3,\"ddd\"))","v":"SÁB"}]
[null,{"$f":"AñoNatural","v":2018}]
[null,null,{"$f":"DíasYSemanas+DATE(AñoNatural,12,1)-WEEKDAY(DATE(AñoNatural,12,1),(InicioDeSemana=\"LUN\")+1)+1","v":"2018-11-25"},"2018-11-26","2018-11-27","2018-11-28","2018-11-29","2018-11-30","2018-12-01"]
[null,null,{"$f":"IF(DAY(CalendarDay)=1,CONCATENATE(\"Semana \",WEEKNUM(CalendarDay),\"/Día \",CalendarDay-DATE(YEAR(CalendarDay),1,0)),CONCATENATE(\"Día \",CalendarDay-DATE(YEAR(CalendarDay),1,0)))","v":"Día 329"},{"$f":"IF(DAY(CalendarDay)=1,CONCATENATE(\"Semana \",WEEKNUM(CalendarDay),\"/Día \",CalendarDay-DATE(YEAR(CalendarDay),1,0)),CONCATENATE(\"Día \",CalendarDay-DATE(YEAR(CalendarDay),1,0)))","v":"Día 330"},{"$f":"IF(DAY(CalendarDay)=1,CONCATENATE(\"Semana \",WEEKNUM(CalendarDay),\"/Día \",CalendarDay-DATE(YEAR(CalendarDay),1,0)),CONCATENATE(\"Día \",CalendarDay-DATE(YEAR(CalendarDay),1,0)))","v":"Día 331"},{"$f":"IF(DAY(CalendarDay)=1,CONCATENATE(\"Semana \",WEEKNUM(CalendarDay),\"/Día \",CalendarDay-DATE(YEAR(CalendarDay),1,0)),CONCATENATE(\"Día \",CalendarDay-DATE(YEAR(CalendarDay),1,0)))","v":"Día 332"},{"$f":"IF(DAY(CalendarDay)=1,CONCATENATE(\"Semana \",WEEKNUM(CalendarDay),\"/Día \",CalendarDay-DATE(YEAR(CalendarDay),1,0)),CONCATENATE(\"Día \",CalendarDay-DATE(YEAR(CalendarDay),1,0)))","v":"Día 333"},{"$f":"IF(DAY(CalendarDay)=1,CONCATENATE(\"Semana \",WEEKNUM(CalendarDay),\"/Día \",CalendarDay-DATE(YEAR(CalendarDay),1,0)),CONCATENATE(\"Día \",CalendarDay-DATE(YEAR(CalendarDay),1,0)))","v":"Día 334"},{"$f":"IF(DAY(CalendarDay)=1,CONCATENATE(\"Semana \",WEEKNUM(CalendarDay),\"/Día \",CalendarDay-DATE(YEAR(CalendarDay),1,0)),CONCATENATE(\"Día \",CalendarDay-DATE(YEAR(CalendarDay),1,0)))","v":"Semana 48/Día 335"}]
[]
[null,null,{"$f":"DíasYSemanas+DATE(AñoNatural,12,1)-WEEKDAY(DATE(AñoNatural,12,1),(InicioDeSemana=\"LUN\")+1)+8","v":"2018-12-02"},"2018-12-03","2018-12-04","2018-12-05","2018-12-06","2018-12-07","2018-12-08"]
[null,null,{"$f":"IF(WEEKDAY(CalendarDay)=ValorDeInicioDeSemana,CONCATENATE(\"Semana \",WEEKNUM(CalendarDay),\"/Día \",CalendarDay-DATE(YEAR(CalendarDay),1,0)),CONCATENATE(\"Día \",CalendarDay-DATE(YEAR(CalendarDay),1,0)))","v":"Semana 49/Día 336"},{"$f":"IF(WEEKDAY(CalendarDay)=ValorDeInicioDeSemana,CONCATENATE(\"Semana \",WEEKNUM(CalendarDay),\"/Día \",CalendarDay-DATE(YEAR(CalendarDay),1,0)),CONCATENATE(\"Día \",CalendarDay-DATE(YEAR(CalendarDay),1,0)))","v":"Día 337"},{"$f":"IF(WEEKDAY(CalendarDay)=ValorDeInicioDeSemana,CONCATENATE(\"Semana \",WEEKNUM(CalendarDay),\"/Día \",CalendarDay-DATE(YEAR(CalendarDay),1,0)),CONCATENATE(\"Día \",CalendarDay-DATE(YEAR(CalendarDay),1,0)))","v":"Día 338"},{"$f":"IF(WEEKDAY(CalendarDay)=ValorDeInicioDeSemana,CONCATENATE(\"Semana \",WEEKNUM(CalendarDay),\"/Día \",CalendarDay-DATE(YEAR(CalendarDay),1,0)),CONCATENATE(\"Día \",CalendarDay-DATE(YEAR(CalendarDay),1,0)))","v":"Día 339"},{"$f":"IF(WEEKDAY(CalendarDay)=ValorDeInicioDeSemana,CONCATENATE(\"Semana \",WEEKNUM(CalendarDay),\"/Día \",CalendarDay-DATE(YEAR(CalendarDay),1,0)),CONCATENATE(\"Día \",CalendarDay-DATE(YEAR(CalendarDay),1,0)))","v":"Día 340"},{"$f":"IF(WEEKDAY(CalendarDay)=ValorDeInicioDeSemana,CONCATENATE(\"Semana \",WEEKNUM(CalendarDay),\"/Día \",CalendarDay-DATE(YEAR(CalendarDay),1,0)),CONCATENATE(\"Día \",CalendarDay-DATE(YEAR(CalendarDay),1,0)))","v":"Día 341"},{"$f":"IF(WEEKDAY(CalendarDay)=ValorDeInicioDeSemana,CONCATENATE(\"Semana \",WEEKNUM(CalendarDay),\"/Día \",CalendarDay-DATE(YEAR(CalendarDay),1,0)),CONCATENATE(\"Día \",CalendarDay-DATE(YEAR(CalendarDay),1,0)))","v":"Día 342"}]
[]
[null,null,{"$f":"DíasYSemanas+DATE(AñoNatural,12,1)-WEEKDAY(DATE(AñoNatural,12,1),(InicioDeSemana=\"LUN\")+1)+15","v":"2018-12-09"},"2018-12-10","2018-12-11","2018-12-12","2018-12-13","2018-12-14","2018-12-15"]
[null,null,{"$f":"IF(WEEKDAY(CalendarDay)=ValorDeInicioDeSemana,CONCATENATE(\"Semana \",WEEKNUM(CalendarDay),\"/Día \",CalendarDay-DATE(YEAR(CalendarDay),1,0)),CONCATENATE(\"Día \",CalendarDay-DATE(YEAR(CalendarDay),1,0)))","v":"Semana 50/Día 343"},{"$f":"IF(WEEKDAY(CalendarDay)=ValorDeInicioDeSemana,CONCATENATE(\"Semana \",WEEKNUM(CalendarDay),\"/Día \",CalendarDay-DATE(YEAR(CalendarDay),1,0)),CONCATENATE(\"Día \",CalendarDay-DATE(YEAR(CalendarDay),1,0)))","v":"Día 344"},{"$f":"IF(WEEKDAY(CalendarDay)=ValorDeInicioDeSemana,CONCATENATE(\"Semana \",WEEKNUM(CalendarDay),\"/Día \",CalendarDay-DATE(YEAR(CalendarDay),1,0)),CONCATENATE(\"Día \",CalendarDay-DATE(YEAR(CalendarDay),1,0)))","v":"Día 345"},{"$f":"IF(WEEKDAY(CalendarDay)=ValorDeInicioDeSemana,CONCATENATE(\"Semana \",WEEKNUM(CalendarDay),\"/Día \",CalendarDay-DATE(YEAR(CalendarDay),1,0)),CONCATENATE(\"Día \",CalendarDay-DATE(YEAR(CalendarDay),1,0)))","v":"Día 346"},{"$f":"IF(WEEKDAY(CalendarDay)=ValorDeInicioDeSemana,CONCATENATE(\"Semana \",WEEKNUM(CalendarDay),\"/Día \",CalendarDay-DATE(YEAR(CalendarDay),1,0)),CONCATENATE(\"Día \",CalendarDay-DATE(YEAR(CalendarDay),1,0)))","v":"Día 347"},{"$f":"IF(WEEKDAY(CalendarDay)=ValorDeInicioDeSemana,CONCATENATE(\"Semana \",WEEKNUM(CalendarDay),\"/Día \",CalendarDay-DATE(YEAR(CalendarDay),1,0)),CONCATENATE(\"Día \",CalendarDay-DATE(YEAR(CalendarDay),1,0)))","v":"Día 348"},{"$f":"IF(WEEKDAY(CalendarDay)=ValorDeInicioDeSemana,CONCATENATE(\"Semana \",WEEKNUM(CalendarDay),\"/Día \",CalendarDay-DATE(YEAR(CalendarDay),1,0)),CONCATENATE(\"Día \",CalendarDay-DATE(YEAR(CalendarDay),1,0)))","v":"Día 349"}]
[]
[null,null,{"$f":"DíasYSemanas+DATE(AñoNatural,12,1)-WEEKDAY(DATE(AñoNatural,12,1),(InicioDeSemana=\"LUN\")+1)+22","v":"2018-12-16"},"2018-12-17","2018-12-18","2018-12-19","2018-12-20","2018-12-21","2018-12-22"]
[null,null,{"$f":"IF(WEEKDAY(CalendarDay)=ValorDeInicioDeSemana,CONCATENATE(\"Semana \",WEEKNUM(CalendarDay),\"/Día \",CalendarDay-DATE(YEAR(CalendarDay),1,0)),CONCATENATE(\"Día \",CalendarDay-DATE(YEAR(CalendarDay),1,0)))","v":"Semana 51/Día 350"},{"$f":"IF(WEEKDAY(CalendarDay)=ValorDeInicioDeSemana,CONCATENATE(\"Semana \",WEEKNUM(CalendarDay),\"/Día \",CalendarDay-DATE(YEAR(CalendarDay),1,0)),CONCATENATE(\"Día \",CalendarDay-DATE(YEAR(CalendarDay),1,0)))","v":"Día 351"},{"$f":"IF(WEEKDAY(CalendarDay)=ValorDeInicioDeSemana,CONCATENATE(\"Semana \",WEEKNUM(CalendarDay),\"/Día \",CalendarDay-DATE(YEAR(CalendarDay),1,0)),CONCATENATE(\"Día \",CalendarDay-DATE(YEAR(CalendarDay),1,0)))","v":"Día 352"},{"$f":"IF(WEEKDAY(CalendarDay)=ValorDeInicioDeSemana,CONCATENATE(\"Semana \",WEEKNUM(CalendarDay),\"/Día \",CalendarDay-DATE(YEAR(CalendarDay),1,0)),CONCATENATE(\"Día \",CalendarDay-DATE(YEAR(CalendarDay),1,0)))","v":"Día 353"},{"$f":"IF(WEEKDAY(CalendarDay)=ValorDeInicioDeSemana,CONCATENATE(\"Semana \",WEEKNUM(CalendarDay),\"/Día \",CalendarDay-DATE(YEAR(CalendarDay),1,0)),CONCATENATE(\"Día \",CalendarDay-DATE(YEAR(CalendarDay),1,0)))","v":"Día 354"},{"$f":"IF(WEEKDAY(CalendarDay)=ValorDeInicioDeSemana,CONCATENATE(\"Semana \",WEEKNUM(CalendarDay),\"/Día \",CalendarDay-DATE(YEAR(CalendarDay),1,0)),CONCATENATE(\"Día \",CalendarDay-DATE(YEAR(CalendarDay),1,0)))","v":"Día 355"},{"$f":"IF(WEEKDAY(CalendarDay)=ValorDeInicioDeSemana,CONCATENATE(\"Semana \",WEEKNUM(CalendarDay),\"/Día \",CalendarDay-DATE(YEAR(CalendarDay),1,0)),CONCATENATE(\"Día \",CalendarDay-DATE(YEAR(CalendarDay),1,0)))","v":"Día 356"}]
[]
[null,null,{"$f":"DíasYSemanas+DATE(AñoNatural,12,1)-WEEKDAY(DATE(AñoNatural,12,1),(InicioDeSemana=\"LUN\")+1)+29","v":"2018-12-23"},"2018-12-24","2018-12-25","2018-12-26","2018-12-27","2018-12-28","2018-12-29"]
[null,null,{"$f":"IF(WEEKDAY(CalendarDay)=ValorDeInicioDeSemana,CONCATENATE(\"Semana \",WEEKNUM(CalendarDay),\"/Día \",CalendarDay-DATE(YEAR(CalendarDay),1,0)),CONCATENATE(\"Día \",CalendarDay-DATE(YEAR(CalendarDay),1,0)))","v":"Semana 52/Día 357"},{"$f":"IF(WEEKDAY(CalendarDay)=ValorDeInicioDeSemana,CONCATENATE(\"Semana \",WEEKNUM(CalendarDay),\"/Día \",CalendarDay-DATE(YEAR(CalendarDay),1,0)),CONCATENATE(\"Día \",CalendarDay-DATE(YEAR(CalendarDay),1,0)))","v":"Día 358"},{"$f":"IF(WEEKDAY(CalendarDay)=ValorDeInicioDeSemana,CONCATENATE(\"Semana \",WEEKNUM(CalendarDay),\"/Día \",CalendarDay-DATE(YEAR(CalendarDay),1,0)),CONCATENATE(\"Día \",CalendarDay-DATE(YEAR(CalendarDay),1,0)))","v":"Día 359"},{"$f":"IF(WEEKDAY(CalendarDay)=ValorDeInicioDeSemana,CONCATENATE(\"Semana \",WEEKNUM(CalendarDay),\"/Día \",CalendarDay-DATE(YEAR(CalendarDay),1,0)),CONCATENATE(\"Día \",CalendarDay-DATE(YEAR(CalendarDay),1,0)))","v":"Día 360"},{"$f":"IF(WEEKDAY(CalendarDay)=ValorDeInicioDeSemana,CONCATENATE(\"Semana \",WEEKNUM(CalendarDay),\"/Día \",CalendarDay-DATE(YEAR(CalendarDay),1,0)),CONCATENATE(\"Día \",CalendarDay-DATE(YEAR(CalendarDay),1,0)))","v":"Día 361"},{"$f":"IF(WEEKDAY(CalendarDay)=ValorDeInicioDeSemana,CONCATENATE(\"Semana \",WEEKNUM(CalendarDay),\"/Día \",CalendarDay-DATE(YEAR(CalendarDay),1,0)),CONCATENATE(\"Día \",CalendarDay-DATE(YEAR(CalendarDay),1,0)))","v":"Día 362"},{"$f":"IF(WEEKDAY(CalendarDay)=ValorDeInicioDeSemana,CONCATENATE(\"Semana \",WEEKNUM(CalendarDay),\"/Día \",CalendarDay-DATE(YEAR(CalendarDay),1,0)),CONCATENATE(\"Día \",CalendarDay-DATE(YEAR(CalendarDay),1,0)))","v":"Día 363"}]
[{"$nulls":4},"NOTAS"]
[]
[null,null,{"$f":"DíasYSemanas+DATE(AñoNatural,12,1)-WEEKDAY(DATE(AñoNatural,12,1),(InicioDeSemana=\"LUN\")+1)+36","v":"2018-12-30"},"2018-12-31"]
[null,null,{"$f":"IF(WEEKDAY(CalendarDay)=ValorDeInicioDeSemana,CONCATENATE(\"Semana \",WEEKNUM(CalendarDay),\"/Día \",CalendarDay-DATE(YEAR(CalendarDay),1,0)),CONCATENATE(\"Día \",CalendarDay-DATE(YEAR(CalendarDay),1,0)))","v":"Semana 53/Día 364"},{"$f":"IF(WEEKDAY(CalendarDay)=ValorDeInicioDeSemana,CONCATENATE(\"Semana \",WEEKNUM(CalendarDay),\"/Día \",CalendarDay-DATE(YEAR(CalendarDay),1,0)),CONCATENATE(\"Día \",CalendarDay-DATE(YEAR(CalendarDay),1,0)))","v":"Día 365"}]